{"text_format":"1","workbook":"xlsx","n_sheets":7,"sheets":["Formulario","Datos eKOGUI","Base eKOGUI","Desv","Apropiaciones","Calendario","Fondo Fiduprevisora"],"not_rendered":{"charts":0,"images":7,"macros":1,"external_links":0,"defined_names":10,"comments":0,"pivot_tables":0},"unopened":[],"bounds":{"document_bytes":16777216,"sheet_cells":100000,"rows_first":2000,"rows_last":500,"rows_between":2000,"halvings":0,"cell_chars":16384,"cell_head_chars":4096},"cells_cut":0,"cells_raw":0,"read":"whole","date_system":"1900"}

{"sheet":"Formulario","index":0,"n_rows":39,"n_cols":4,"rows_kept":39,"cut":false,"hidden":false,"merged":[[37,1,37,6],[35,1,35,2],[28,1,28,2],[28,3,28,6],[19,1,19,2],[29,1,29,2],[29,3,29,6],[34,1,34,2],[34,3,34,6],[23,1,23,2],[22,1,22,2],[0,2,2,5],[27,1,27,2],[27,3,27,6],[3,1,3,6],[5,1,5,2],[5,3,5,6],[6,1,6,2],[6,3,6,6],[25,1,25,6],[8,1,8,2],[8,3,8,6],[9,1,9,2],[19,3,19,6],[7,3,7,6],[10,3,10,6],[9,3,9,6],[10,1,10,2],[11,1,11,2],[17,3,17,6],[11,3,11,6],[14,1,14,6],[16,1,16,2],[16,3,16,6],[17,1,17,2],[12,1,12,6],[13,1,13,3],[38,1,46,6],[47,0,47,7],[18,1,18,2],[18,3,18,6],[23,3,23,6],[20,3,20,6],[21,3,21,6],[22,3,22,6],[36,1,36,6],[35,3,35,6],[31,1,31,6],[30,1,30,3],[33,1,33,2],[33,3,33,6],[20,1,20,2],[21,1,21,2]]}
[null,null,"Formulario de Cálculo\nAportes al FCEE por S&C1"]
[]
[]
[null,"INFORMACIÓN DE LA ENTIDAD"]
[]
[null,"Fecha",null,{"$f":"+TODAY()","v":"2026-03-06"}]
[null,"Nombre Entidad ",null,{"$f":"IFERROR(VLOOKUP(D8,Desv,2,FALSE),\"\")","v":""}]
[null,"NIT de la Entidad"]
[null,"Nombres y apellidos"]
[null,"Dependencia"]
[null,"Teléfono de contacto"]
[null,"Correo electrónico "]
[null,{"$f":"IFERROR(IF(D8=\"\",\"\",VLOOKUP(D8,Calendario,3,FALSE)),\"\")","v":""}]
[null,"¿Desea excluir procesos atípicos? \nOprima el botón \"Procesos (Exclusión)\""]
[null,"INFORMACIÓN GENERAL DE LOS PROCESOS EKOGUI"]
[]
[null,"Total procesos eKOGUI"]
[null,"Desviación estándar",null,{"$f":"IF(D17=\"\",\"\",VLOOKUP(D8,Desv,4,FALSE))","v":""}]
[null,"Monto de exclusión2"]
[null,"No. Procesos excluidos"]
[null,"Procesos atípicos3"]
[null,"Procesos en cero4"]
[null,"Procesos anteriores a 20195"]
[null,"Total No. Procesos "]
[]
[null,"ESTADO DE CUENTA DE LOS APORTES AL FCEE POR S&C"]
[]
[null,"Valor aportes apropiados 20266"]
[null,"Estado de cuenta 31/12/20257",null,{"$f":"IFERROR(IF(D17=\"\",\"\",VLOOKUP(D8,Aportes_FCEE,4,FALSE)),\"\")","v":""}]
[]
[null,"Oprima el botón \"Aplicar Metodología\", para valorar el Pasivo Contingente Judicial y el Aporte al FCEE por S&C"]
[null,"VALORES FINALES"]
[]
[null,"Pasivo Contingente Judicial "]
[null,"Total de Aportes al FCEE por S&C"]
[null,"Valor de Aporte Vigencia 20278"]
[null,{"$f":"IF(D36<0,\"*Para esta vigencia su entidad NO debe realizar aportes al fondo de sentencias y conciliaciones\",\"\")","v":""}]
[null,"Nota: En el cálculo del aporte su entidad no realizo exclusión de procesos."]
[null,"1. FCEE por S&C: Fondo de Contingencias de las Entidades Estatales por Sentencias y Conciliaciones.\n2. Monto de exclusión: Valor a partir del cual se excluyen los procesos por encima de la media aritmética.\t\t\n3. Procesos atípicos: En concordancia con los principios de materialidad, razonabilidad y análisis del riesgo establecidos en la Resolución 2159 de 2020, se consideran procesos atípicos aquellos cuyo valor ajustado supera un umbral estadístico definido como el promedio de los valores ajustados más un múltiplo de la desviación estándar, y que adicionalmente presentan una probabilidad total inferior a 0,7. Estos procesos representan eventos de impacto económico excepcional que se apartan significativamente del comportamiento general de la cartera, por lo cual se identifican de manera diferenciada para efectos de análisis y validación.\n4. Por favor revisar estos procesos teniendo en cuenta lo dispuesto en el artículo 194 de la ley 1437 de 2011 : “(…) en la medida en que una contingencia se encuentre debidamente provisionada en el Fondo de Contingencias, y se genere la obligación de pago de la condena, este se hará con base en el procedimiento descrito en el artículo siguiente. Los procesos cuya condena quede ejecutoriada antes de valorar la contingencia, se pagarán directamente con cargo al presupuesto de la respectiva entidad”.\t\t\n5. Por favor revisar la información registrada de estos procesos dado que el ámbito de aplicación corresponde a los procesos judiciales cuya notificación del auto admisorio de la demanda se dio a partir del 1 de enero de 2019. De acuerdo con lo dispuesto en el ARTÍCULO 2.4.4.2. Ámbito de aplicación. Del decreto 1068 de 2015. Por lo tanto, procesos con auto de admisión anteriores a esta fecha no pueden ser pagados por el Fondo de Contingencias.\n6. Valor aportes apropiados en 2026: solo se puede tener en cuenta aportes que cuentan con respaldo presupuestal y que se van a realizar efectivamente durante la vigencia 2026. \n7. Saldo en el Fondo 31/12/2025: Hace referencia al valor que se encuentra en el Fondo de Contingencias de las Entidades Estatales por Sentencias y Conciliaciones, de acuerdo con el estado de cuenta emitido por la Fiduprevisora a esta fecha de corte.\t\n8. De manera anual y de acuerdo con el calendario que estará publicado en la página web del Ministerio de Hacienda y Crédito Público; se debe enviar para aprobación el presente formulario en el período previo a la vigencia en la que se realizará el aporte."]

{"sheet":"Datos eKOGUI","index":1,"n_rows":2,"n_cols":45,"rows_kept":2,"cut":false,"hidden":true,"merged":[[0,0,0,43]]}
[]
["PROC_NRO_RAMA_ASIG","PROC_ID","ENT_ID","ENT_ENTIDAD","CALSUJP_CALIDAD_SUJETO","VALOR_PRETENSION_TOTAL","VALOR_JURAMENTO","VALOR_ESTIMACION","VALOR_ECONOMICO_PROCESO","PORCENTAJE","JUR_ID","JURISDICCION","ACJ_ID","ACCION_JUDICIAL","CAUSA_ID","CAUSA","INSTANCIA","FALLO_PRIM","FALLO_SEG","CRITERIO_1","CRITERIO_2","CRITERIO_3","CRITERIO_4","FECHA_ADMISION","PRETENSION_DETERMINADA","RELACION_CONDENA","VALOR_AJUSTADO","FECHA_CALIFICACION","SECTOR_ID","SECTOR","PROBABILIDAD_ABOGADO","PROBABILIDAD_HISTORICA","PROBABILIDAD_TOTAL","DURACION_ESTIMADA","FECHA_FALLO1","FECHA_FALLO2","FECHA_NOTIFICACION","ENT_ID_PADRE","ESTADO_PROCESO","CONTIGENTE","DIAS ESTIMADOS","FECHA ESTIMADA","AÑO ESTIMADO","TIEMPO ESTIMADO","APORTE"]

{"sheet":"Base eKOGUI","index":2,"n_rows":2,"n_cols":39,"rows_kept":2,"cut":false,"hidden":false,"merged":[[0,0,0,37]]}
["Formulario Contingente por Proceso"]
["PROC_NRO_RAMA_ASIG","PROC_ID","ENT_ID","ENT_ENTIDAD","CALSUJP_CALIDAD_SUJETO","VALOR_PRETENSION_TOTAL","VALOR_JURAMENTO","VALOR_ESTIMACION","VALOR_ECONOMICO_PROCESO","PORCENTAJE","JUR_ID","JURISDICCION","ACJ_ID","ACCION_JUDICIAL","CAUSA_ID","CAUSA","INSTANCIA","FALLO_PRIM","FALLO_SEG","CRITERIO_1","CRITERIO_2","CRITERIO_3","CRITERIO_4","FECHA_ADMISION","PRETENSION_DETERMINADA","RELACION_CONDENA","VALOR_AJUSTADO","FECHA_CALIFICACION","SECTOR_ID","SECTOR","PROBABILIDAD_ABOGADO","PROBABILIDAD_HISTORICA","PROBABILIDAD_TOTAL","DURACION_ESTIMADA","FECHA_FALLO1","FECHA_FALLO2","FECHA_NOTIFICACION","ENT_ID_PADRE","GENERA_EROGACION"]

{"sheet":"Desv","index":3,"n_rows":229,"n_cols":6,"rows_kept":229,"cut":false,"hidden":true,"merged":[]}
[null,null,"Transición",1,"Año actual",2026]
["NIT","Nombre de la Entidad ","ID Entidad","No de Desviaciones","Entidad sin Proceso"]
[800072977,"FONDO ROTATORIO DEL DANE",462,2]
[800093816,"DIRECCION EJECUTIVA DE ADMINISTRACION JUDICIAL-RAMA JUDICIAL",426,0.18140463122397291]
[800093816,"CONSEJO SUPERIOR DE LA JUDICATURA",426,0.18140463122397291]
[800093816,"CORTE CONSTITUCIONAL",426,0.18140463122397291]
[800093816,"CORTE SUPREMA DE JUSTICIA",426,0.18140463122397291]
[800093816,"CONSEJO DE ESTADO",426,0.18140463122397291]
[800093816,"TRIBUNALES Y JUZGADOS",426,0.18140463122397291]
[800099287,"CORPORACIÓN AUTÓNOMA REGIONAL DEL MAGDALENA (CORPAMAG)",90,0.19160258334763194]
[800112806,"FONDO PASIVO SOCIAL DE FERROCARRILES NACIONALES DE COLOMBIA - SALUD ",217,0.15864418659085341]
[800112806,"FONDO PASIVO SOCIAL DE FERROCARRILES NACIONALES DE COLOMBIA -PENSIONES",217,0.15864418659085341]
[901179431,"COMISIÓN PARA EL ESCLARECIMIENTO DE LA VERDAD, LA  CONVIVENCIA Y LA NO REPETICIÓN EN LIQUIDACIÓN","",null,"X"]
[800128835,"ARCHIVO GENERAL DE LA NACIÓN",108,2]
[800130632,"EJÉRCITO",124,0.26886855405249027]
[800131648,"FONDO ÚNICO DE TECNOLOGÍAS DE LA INFORMACIÓN Y LAS COMUNICACIONES",240,2.5968097846475189]
[800141397,"POLICÍA NACIONAL - GESTIÓN GENERAL",125,0.29208116983305665]
[830079479,"COMPUTADORES PARA EDUCAR CPE",536,null,"X"]
[800150861,"INSTITUTO NACIONAL DE MEDICINA LEGAL Y CIENCIAS FORENSES",233,3.0347716544135031]
[800152783,"FISCALÍA GENERAL DE LA NACIÓN - GESTIÓN GENERAL",232,0.18222774273127926]
[901144049,"CORPORACIÓN AGENCIA NACIONAL DE GOBIERNO DIGITAL - AND","",null,"X"]
[800170433,"SUPERINTENDENCIA DE PUERTOS Y TRANSPORTE",248,3.4711381452387675E-2]
[800173719,"INSTITUTO TOLIMENSE DE FORMACIÓN TÉCNICA PROFESIONAL",146,2]
[800176089,"SUPERINTENDENCIA DE INDUSTRIA Y COMERCIO",170,4.1954286732125944E-2]
[800185929,"DIRECCIÓN NACIONAL DEL DERECHO DE AUTOR",172,2]
[800186061,"DEFENSORÍA DEL PUEBLO",200,0.18460088799082694]
[800197268,"UNIDAD ADMINISTRATIVA ESPECIAL DIRECCIÓN DE IMPUESTOS Y ADUANAS NACIONALES -DIAN",1584,0.33948994409203787]
[800215546,"INSTITUTO NACIONAL PENITENCIARIO Y CARCELARIO - INPEC",174,2.1005322719202764]
[800215807,"INSTITUTO NACIONAL DE VÍAS",246,0.15426677326324925]
[800217123,"SUPERINTENDENCIA DE VIGILANCIA Y SEGURIDAD PRIVADA",128,0.16246823563737189]
[901352963,"DIRECCIÓN DE SUSTITUCIÓN DE CULTIVOS USO ILÍCITO","",null,"X"]
[800230729,"COMANDO GENERAL",124,0.26886855405249027]
[800237214,"CORPORACIÓN NACIONAL PARA LA RECONSTRUCCIÓN DE LA CUENCA DEL RIO PÁEZ Y ZONAS ALEDAÑAS NASA KI WE",176,2]
[800248004,"INSTITUTO TÉCNICO NACIONAL DE COMERCIO \"SIMÓN RODRÍGUEZ\" DE CALI",142,2]
[800250984,"SUPERINTENDENCIA DE SERVICIOS PÚBLICOS DOMICILIARIOS",209,0.50958294664042203]
[800252037,"CORPORACIÓN AUTÓNOMA REGIONAL DE CHIVOR (CORPOCHIVOR)",77,1.899220479955033]
[800252683,"FONDO DE BIENESTAR SOCIAL DE LA CONTRALORÍA GENERAL DE LA REPÚBLICA",201,2.5106095428888273]
[800252843,"CORPORACIÓN AUTÓNOMA REGIONAL DE BOYACÁ (CORPOBOYACÁ)",75,0.85229335680157681]
[800252844,"CORPORACIÓN PARA EL DESARROLLO SOSTENIBLE DEL SUR DE LA AMAZONIA (CORPOAMAZONIA)",107,1.1458110588713109]
[800254453,"CORPORACIÓN AUTÓNOMA REGIONAL DEL CANAL DEL DIQUE (CARDIQUE)",83,0.36556463739297435]
[800255580,"CORPORACIÓN AUTÓNOMA REGIONAL DEL ALTO MAGDALENA (CAM)",86,0.5017976127360646]
[802000339,"CORPORACIÓN AUTÓNOMA REGIONAL DEL ATLÁNTICO (CRA)",284,2.6411407729029124]
[804000292,"CORPORACIÓN AUTÓNOMA REGIONAL DE SANTANDER (CAS)",102,3.0280312441511494]
[806000327,"CORPORACIÓN AUTÓNOMA REGIONAL DEL SUR DE BOLÍVAR (CSB)",289,2.2609259577765606]
[811000231,"CORPORACIÓN AUTÓNOMA REGIONAL DEL CENTRO DE ANTIOQUIA (CORANTIOQUIA)",103,0.23586678081194809]
[822000091,"CORPORACIÓN PARA EL DESARROLLO SOSTENIBLE DEL ÁREA DE MANEJO ESPECIAL LA MACARENA (CORMACARENA)",96,1.439772637396433]
[823000050,"CORPORACIÓN AUTÓNOMA REGIONAL DE SUCRE (CARSUCRE)",92,3.1352252024580873]
[823000077,"CORPORACIÓN  PARA EL DESARROLLO SOSTENIBLE DE LA MOJANA Y EL SAN JORGE (CORPOMOJANA)",97,2.1399470108243803]
[827000031,"CORPORACIÓN PARA EL DESARROLLO SOSTENIBLE DEL ARCHIPIÉLAGO DE SAN ANDRES, PROVIDENCIA Y SANTA CATALINA (CORALINA)",95,2.3446318061239189]
[829000127,"CORPORACION AUTONOMA REGIONAL DEL RIO GRANDE DEL MAGDALENA",91,1.7920388564595451]
[830000167,"INSTITUTO NACIONAL DE VIGILANCIA DE MEDICAMENTOS Y ALIMENTOS - INVIMA",223,0.3154882978439662]
[830000212,"COMISIÓN DE REGULACIÓN DE AGUA POTABLE Y SANEAMIENTO BÁSICO CRA",65,2.5658968264743742]
[830000282,"UNIDAD DE PLANEACION MINERO ENERGÉTICA - UPME",195,0.51739712342447608]
[830000602,"INSTITUTO DE HIDROLOGÍA, METEOROLOGÍA Y ESTUDIOS AMBIENTALES- IDEAM",64,2.9658159032020115]
[830002593,"UNIDAD ADMINISTRATIVA ESPECIAL COMISIÓN DE REGULACIÓN DE COMUNICACIONES",239,1.5838635862148329]
[830016624,"PARQUES NACIONALES NATURALES DE COLOMBIA",74,0.66225585227639183]
[901148337,"FONDO ESPECIAL PARA LA ADMINISTRACIÓN DE BIENES DE LA FISCALÍA GENERAL DE LA NACIÓN",null,null,"X"]
[830025406,"UNIDAD ADMINISTRATIVA ESPECIAL CONTADURÍA GENERAL DE LA NACIÓN",323,2]
[830027904,"DIRECCIÓN GENERAL MARÍTIMA (DIMAR)",124,0.26886855405249027]
[830034348,"MINISTERIO DE CULTURA - GESTIÓN GENERAL",112,1.0077550354068738]
[830040256,"HOSPITAL MILITAR",122,0.45989894088558569]
[830041314,"POLICÍA NACIONAL - SALUD",3007,2.3538346038219653]
[830053043,"SUPERINTENDENCIA DE LA ECONOMÍA SOLIDARIA",130,0.61882480054982547]
[830065741,"AUDITORÍA GENERAL DE LA REPÚBLICA - GESTIÓN GENERAL",197,2]
[830067892,"INSTITUTO COLOMBIANO DE ANTROPOLOGÍA E HISTORIA",110,2]
[830068074,"UNIDAD DE INFORMACIÓN Y ANÁLISIS FINANCIERO",161,2]
[830025267,"FONDO NACIONAL AMBIENTAL - GESTIÓN GENERAL","",null,"X"]
[830085129,"FONDO SOCIAL DE VIVIENDA DE LA REGISTRADURÍA NACIONAL DEL ESTADO CIVIL",448,2]
[830114475,"MINISTERIO DEL INTERIOR - GESTIÓN GENERAL",407,0.2418577673581509]
[830114475,"DIRECCIÓN DE LA AUTORIDAD NACIONAL DE CONSULTA PREVIA",407,0.2418577673581509]
[830115226,"MINISTERIO DEL TRABAJO - GESTIÓN GENERAL",403,0.4291928691273238]
[830115297,"MINISTERIO DE COMERCIO INDUSTRIA TURISMO - GESTIÓN GENERAL",169,0.49482179773078722]
[830115297,"DIRECCIÓN GENERAL DE COMERCIO EXTERIOR",169,0.49482179773078722]
[830115395,"MINISTERIO DE AMBIENTE Y DESARROLLO SOSTENIBLE - GESTIÓN GENERAL",386,0.11254731190136272]
[830121208,"FONDO NACIONAL DE VIVIENDA - FONVIVIENDA",307,1.3050429304661995]
[830125996,"AGENCIA NACIONAL DE INFRAESTRUCTURA",245,3.4260202359991936E-2]
[830127607,"AGENCIA NACIONAL DE HIDROCARBUROS - ANH",179,2.4230508763539285]
[832000171,"CORPORACIÓN AUTÓNOMA REGIONAL DEL GUAVIO (CORPOGUAVIO)",89,1.9630898900964611]
[832000283,"CORPORACIÓN AUTÓNOMA REGIONAL DE LA ORINOQUIA (CORPORINOQUIA)",81,0.60694080259578809]
[860016627,"INSTITUTO NACIONAL PARA SORDOS (INSOR)","",null,"X"]
[838000009,"CORPORACIÓN  PARA EL DESARROLLO SOSTENIBLE DEL NORTE Y ORIENTE DE LA AMAZONIA (CDA)",104,2.5560006362499741]
[901733502,"MINISTERIO DE IGUALDAD Y EQUIDAD",3091,null,"X"]
[860015971,"INSTITUTO NACIONAL PARA CIEGOS (INCI)",138,2]
[8300157281,"MINISTERIO PUBLICO - INSTITUTO DE ESTUDIOS DEL MINISTERIO PUBLICO","",null,"X"]
[860016951,"CLUB MILITAR DE OFICIALES",117,2]
[860020227,"FONDO ROTATORIO DE LA POLICÍA - GESTIÓN GENERAL",121,2.8892897173942527]
[860041247,"INSTITUTO CASAS FISCALES DEL EJÉRCITO",123,2.1728329503707338]
[860062187,"SUPERINTENDENCIA NACIONAL DE SALUD",229,0.45765840207982322]
[860402193,"INSTITUTO NACIONAL DE FORMACIÓN TÉCNICA PROFESIONAL DE SAN JUAN DEL CESAR",141,2]
[860503600,"SUPERINTENDENCIA DE SUBSIDIO FAMILIAR",228,1.6093463198997857]
[860511071,"FONDO ROTATORIO DEL MINISTERIO DE RELACIONES EXTERIORES",236,2]
[900528648,"UNIDAD ADMINISTRATIVA ESPECIAL AGENCIA DEL INSPECTOR GENERAL DE TRIBUTOS, RENTAS Y CONTRIBUCIONES PARAFISCALES (ITRC)",534,null,"X"]
[860523694,"ESCUELA TECNOLÓGICA INSTITUTO TÉCNICO CENTRAL",145,2]
[901377527,"UNIDAD ADMINISTRATIVA ESPECIAL ALIMENTACIÓN ESCOLAR","",null,"X"]
[890000447,"CORPORACIÓN AUTÓNOMA REGIONAL DEL QUINDÍO (CRQ)",98,0.20604122688216336]
[900678508,"UNIDAD ADMINISTRATIVA ESPECIAL DEL SERVICIO PÚBLICO DE EMPLEO","",null,"X"]
[901525615,"UNIDAD DE PLANEACIÓN DEL SECTOR DE INFRAESTRUCTURA DE TRANSPORTE","",null,"X"]
[890201573,"CORPORACIÓN AUTÓNOMA REGIONAL PARA LA DEFENSA DE LA MESETA DE BUCARAMANGA (CDMB)",94,0.57786144335782208]
[800144829,"UNIVERSIDADES PÚBLICAS - UNIVERSIDAD COLEGIO MAYOR DE CUNDINAMARCA",""]
[890980040,"UNIVERSIDADES PÚBLICAS - UNIVERSIDAD DE ANTIOQUIA",""]
[890801063,"UNIVERSIDADES PÚBLICAS - UNIVERSIDAD DE CALDAS",""]
[890480123,"UNIVERSIDADES PÚBLICAS - UNIVERSIDAD DE CARTAGENA",""]
[890505253,"CORPORACIÓN AUTÓNOMA REGIONAL DE LA FRONTERA NORORIENTAL (CORPONOR)",79,2.6502800681880752]
[891080031,"UNIVERSIDADES PÚBLICAS - UNIVERSIDAD DE CORDOBA",""]
[890680062,"UNIVERSIDADES PÚBLICAS - UNIVERSIDAD DE CUNDINAMARCA",""]
[890704536,"CORPORACIÓN AUTÓNOMA REGIONAL DEL TOLIMA (CORTOLIMA)",93,1.194527594466166]
[891190346,"UNIVERSIDADES PÚBLICAS - UNIVERSIDAD DE LA AMAZONIA",""]
[890803005,"CORPORACIÓN AUTÓNOMA REGIONAL DE CALDAS (CORPOCALDAS)",76,0.35995717519070264]
[890907748,"CORPORACIÓN PARA EL DESARROLLO SOSTENIBLE DEL URABÁ (CORPOURABÁ)",99,1.4863946290194243]
[892115029,"UNIVERSIDADES PÚBLICAS - UNIVERSIDAD DE LA GUAJIRA",""]
[890999057,"SUPERINTENDENCIA FINANCIERA DE COLOMBIA",159,8.3162685190724308E-3]
[891000627,"CORPORACIÓN AUTÓNOMA REGIONAL DE LOS VALLES DEL SINÚ Y SAN JORGE (CVS)",84,0.71631850637441008]
[892000757,"UNIVERSIDADES PÚBLICAS - UNIVERSIDAD DE LOS LLANOS",""]
[800118954,"UNIVERSIDADES PÚBLICAS - UNIVERSIDAD DE NARIÑO",""]
[890501510,"UNIVERSIDADES PÚBLICAS - UNIVERSIDAD DE PAMPLONA",""]
[891222322,"CORPORACIÓN AUTÓNOMA REGIONAL DE NARIÑO (CORPONARIÑO)",85,2.1775051328812949]
[891410354,"CORPORACIÓN AUTÓNOMA REGIONAL DE RISARALDA (CARDER)",101,2.0226945237469871]
[892200323,"UNIVERSIDADES PÚBLICAS - UNIVERSIDAD DE SUCRE",""]
[890102257,"UNIVERSIDADES PÚBLICAS - UNIVERSIDAD DEL ATLANTICO",""]
[891501885,"CORPORACIÓN AUTÓNOMA REGIONAL DEL CAUCA (CRC)",87,1.321687847406855]
[891500319,"UNIVERSIDADES PÚBLICAS - UNIVERSIDAD DEL CAUCA",""]
[891780111,"UNIVERSIDADES PÚBLICAS - UNIVERSIDAD DEL MAGDALENA",""]
[835000300,"UNIVERSIDADES PÚBLICAS - UNIVERSIDAD DEL PACIFICO",""]
[890000432,"UNIVERSIDADES PÚBLICAS - UNIVERSIDAD DEL QUINDIO",""]
[890700640,"UNIVERSIDADES PÚBLICAS - UNIVERSIDAD DEL TOLIMA",""]
[892115314,"CORPORACIÓN AUTÓNOMA REGIONAL DE LA  GUAJIRA (CORPOGUAJIRA)",80,2.5614078850296673]
[890399010,"UNIVERSIDADES PÚBLICAS - UNIVERSIDAD DEL VALLE",""]
[899999230,"UNIVERSIDADES PÚBLICAS - UNIVERSIDAD DISTRITAL FRANCISCO JOSE DE CALDAS",""]
[892301483,"CORPORACIÓN AUTÓNOMA REGIONAL DEL CESAR (CORPOCESAR)",288,1.4238526275840231]
[892400461,"INSTITUTO NACIONAL DE FORMACIÓN TÉCNICA PROFESIONAL DE SAN ANDRES Y PROVIDENCIA",137,2]
[899999001,"MINISTERIO DE EDUCACIÓN NACIONAL - GESTIÓN GENERAL",3042,7.3207156867048387E-2]
[899999003,"MINISTERIO DE DEFENSA NACIONAL - GESTIÓN GENERAL",124,0.26886855405249027]
[899999003,"MINISTERIO DE DEFENSA NACIONAL - SALUD",124,0.26886855405249027]
[899999004,"INSTITUTO GEOGRÁFICO AGUSTÍN CODAZZI - IGAC",149,0.8167505417875921]
[899999007,"SUPERINTENDENCIA DE NOTARIADO Y REGISTRO",175,0.13087944791224454]
[899999011,"DEPARTAMENTO ADMINISTRATIVO NACIONAL DE PLANEACIÓN - GESTIÓN GENERAL",205,1.0199447631491532]
[899999020,"DEPARTAMENTO ADMINISTRATIVO DE LA FUNCIÓN PÚBLICA- GESTIÓN GENERAL",150,1.1798730141082971]
[899999022,"MINISTERIO DE MINAS Y ENERGÍA - GESTIÓN GENERAL",196,1.7060674772979441E-3]
[899999027,"DEPARTAMENTO ADMINISTRATIVO NACIONAL DE ESTADÍSTICA (DANE) - GESTIÓN GENERAL",148,3.375530011974202]
[899999028,"MINISTERIO DE AGRICULTURA Y DESARROLLO RURAL - GESTIÓN GENERAL",63,1.091160125525457]
[899999034,"SERVICIO NACIONAL DE APRENDIZAJE (SENA)",227,0.41490808640208693]
[899999040,"REGISTRADURÍA NACIONAL DEL ESTADO CIVIL - GESTIÓN GENERAL",203,0.56480404917939964]
[899999042,"MINISTERIO DE RELACIONES EXTERIORES - GESTIÓN GENERAL",237,1.5953138909880622]
[899999048,"INSTITUTO DE PLANIFICACIÓN Y PROMOCIÓN DE SOLUCIONES  ENERGÉTICAS PARA LAS ZONAS NO INTERCONECTADAS - IPSE",193,1.5217154797120349]
[899999050,"UNIDAD ADMINISTRATIVA ESPECIAL DE ORGANIZACIONES SOLIDARIAS",404,2]
[899999053,"MINISTERIO DE TECNOLOGÍAS DE LA INFORMACIÓN Y LAS COMUNICACIONES - GESTIÓN GENERAL",242,0.89794764032976593]
[899999054,"ESCUELA SUPERIOR DE ADMINISTRACIÓN PÚBLICA (ESAP)",151,2.0539086187045719]
[899999055,"MINISTERIO DE TRANSPORTE - GESTIÓN GENERAL",247,0.34908983208663996]
[899999055,"COMISIÓN DE REGULACIÓN DE INFRAESTRUCTURA Y TRANSPORTE",247,0.34908983208663996]
[899999059,"UNIDAD ADMINISTRATIVA ESPECIAL DE LA AERONÁUTICA CIVIL",249,0.79214131817063149]
[890500622,"UNIVERSIDADES PÚBLICAS - UNIVERSIDAD FRANCISCO DE PAULA SANTANDER",""]
[899999067,"CONTRALORÍA GENERAL DE LA REPÚBLICA - GESTIÓN GENERAL",199,7.7039821392312469E-2]
[899999069,"INSTITUTO COLOMBIANO AGROPECUARIO (ICA)",57,1.3318838148940542]
[899999073,"CAJA DE SUELDOS DE RETIRO DE LA POLICÍA NACIONAL",115,2.0810908277650841]
[899999083,"PRESIDENCIA DE LA REPÚBLICA - GESTIÓN GENERAL",210,0.61474952274862738]
[899999086,"SUPERINTENDENCIA DE SOCIEDADES",171,3.459037143371331E-2]
[899999090,"MINISTERIO DE HACIENDA Y CRÉDITO PÚBLICO - GESTIÓN GENERAL",348,0.18777226108682005]
[899999090,"SERVICIO DE LA DEUDA PÚBLICA NACIONAL",348,0.18777226108682005]
[899999096,"INSTITUTO CARO Y CUERVO",109,2]
[899999098,"CÁMARA DE REPRESENTANTES",235,2.1487007633571067]
[899999102,"FUERZA AÉREA",124,0.26886855405249027]
[899999103,"SENADO DE LA REPÚBLICA",234,4.253789804023065E-2]
[899999118,"CAJA DE RETIRO DE LAS FUERZAS MILITARES",114,0.94513690587691779]
[899999119,"PROCURADURÍA GENERAL DE LA NACIÓN - GESTIÓN GENERAL",202,0.23945703591637396]
[800163130,"UNIVERSIDADES PÚBLICAS - UNIVERSIDAD FRANCISCO DE PAULA SANTANDER SECCIONAL OCAÑA",""]
[899999162,"AGENCIA LOGÍSTICA DE LAS FUERZAS MILITARES",113,0.21920910687254211]
[890201213,"UNIVERSIDADES PÚBLICAS - UNIVERSIDAD INDUSTRIAL DE SANTANDER",""]
[899999238,"CORPORACIÓN AUTÓNOMA REGIONAL PARA EL DESARROLLO SOSTENIBLE DEL CHOCO (CODECHOCO)",106,1.8250437642003805]
[899999239,"INSTITUTO COLOMBIANO DE BIENESTAR FAMILIAR (ICBF)",219,3.0805187765341701E-4]
[899999294,"SERVICIO GEOLÓGICO COLOMBIANO",192,1.7117907226983504]
[899999296,"MINISTERIO DE CIENCIA, TECNOLOGÍA E INNOVACIÓN - GESTIÓN GENERAL",297,2.2115119633974492]
[899999306,"MINISTERIO DEL DEPORTE - GESTIÓN GENERAL ",111,0.72490699131879521]
[899999327,"UNIDAD ADMINISTRATIVA ESPECIAL FONDO NACIONAL DE ESTUPEFACIENTES",315,2]
[899999403,"INSTITUTO NACIONAL DE SALUD (INS)",222,2.6166395778507305]
[899999717,"DEFENSA CIVIL COLOMBIANA, GUILLERMO LEÓN VALENCIA",120,2.8722313082426574]
[899999734,"FONDO DE PREVISIÓN SOCIAL DEL CONGRESO - CESANTÍAS Y VIVIENDA",218,1.4588662217963133]
[899999734,"FONDO DE PREVISIÓN SOCIAL DEL CONGRESO - PENSIONES",218,1.4588662217963133]
[899999737,"FONDO ROTATORIO DE LA REGISTRADURÍA",317,2]
[900003409,"COMISIÓN NACIONAL DEL SERVICIO CIVIL",204,1.0011580368047788]
[900034993,"COMISIÓN DE REGULACIÓN DE ENERGÍA Y GAS (CREG)",185,0.25643400506900921]
[900039527,"ARMADA",124,0.26886855405249027]
[900039533,"DEPARTAMENTO ADMINISTRATIVO PARA LA PROSPERIDAD SOCIAL - GESTIÓN GENERAL",394,0.67069004235835017]
[900180739,"UNIDAD ADMINISTRATIVA ESPECIAL JUNTA CENTRAL CONTADORES",445,2.5507579328770795]
[900334265,"AGENCIA NACIONAL DEL ESPECTRO - ANE",390,2]
[900373379,"POLICÍA NACIONAL - EDUCACIÓN",3007,2.3538346038219653]
[900373913,"UNIDAD ADMINISTRATIVA ESPECIAL DE GESTIÓN PENSIONAL Y CONTRIBUCIONES PARAFISCALES DE LA PROTECCIÓN SOCIAL (UGPPP) - GESTIÓN GENERAL",433,0.28169591489380813]
[900384997,"UNIDAD ADMINISTRATIVA ESPECIAL DE LA JUSTICIA PENAL MILITAR Y POLICIAL",3041,6.8970405989729228E-2]
[900450205,"FONDO ADAPTACIÓN",438,1.6810054145506343]
[900457461,"MINISTERIO DE JUSTICIA Y DEL DERECHO - GESTIÓN GENERAL",415,0.17126521354623034]
[900463725,"MINISTERIO DE VIVIENDA, CIUDAD Y TERRITORIO - GESTIÓN GENERAL",389,2.4724498197261791E-2]
[900467239,"AUTORIDAD NACIONAL DE LICENCIAS AMBIENTALES ANLA",387,0.34935300614124648]
[900474727,"MINISTERIO DE SALUD Y PROTECCIÓN SOCIAL - GESTIÓN GENERAL",401,0.15893871555892675]
[900475460,"DEPARTAMENTO ADMINISTRATIVO DIRECCIÓN NACIONAL DE INTELIGENCIA - GESTIÓN GENERAL",424,2.0064489501024743]
[900475780,"UNIDAD NACIONAL DE PROTECCIÓN - UNP",408,0.64368048877212836]
[900477169,"AGENCIA PARA LA REINCORPORACIÓN Y LA NORMALIZACIÓN - ARN",421,1.3254897792318361]
[900477235,"UNIDAD ADMINISTRATIVA ESPECIAL MIGRACIÓN COLOMBIA",409,1.3865032943579632]
[900478966,"UNIDAD NACIONAL PARA LA GESTIÓN DEL RIESGO DE DESASTRES",419,0.78478992143262749]
[900479658,"UNIDAD DE PLANIFICACIÓN DE TIERRAS RURALES, ADECUACIÓN DE TIERRAS Y USOS AGROPECUARIOS (UPRA)",383,2]
[900479669,"AUTORIDAD NACIONAL DE ACUICULTURA Y PESCA - AUNAP",384,2.5390755336354882]
[900483991,"AGENCIA NACIONAL INMOBILIARIA VIRGILIO BARCO VARGAS",418,2]
[900484852,"AGENCIA PRESIDENCIAL DE COOPERACIÓN INTERNACIONAL DE COLOMBIA, APC - COLOMBIA",420,2.2630231773622049]
[900490473,"UNIDAD DE ATENCIÓN Y REPARACIÓN INTEGRAL A LAS VÍCTIMAS",395,0.23795337012869552]
[900492141,"CENTRO DE MEMORIA HISTÓRICA",396,1.0076252525481222]
[900494393,"INSTITUTO NACIONAL DE METROLOGÍA - INM",423,2]
[900498879,"UNIDAD ADMINISTRATIVA ESPECIAL DE GESTIÓN DE RESTITUCIÓN DE TIERRAS DESPOJADAS",467,0.198515406637884]
[900500018,"AGENCIA NACIONAL DE MINERÍA - ANM",422,0.23020493911318213]
[900507741,"UNIDAD ADMINISTRATIVA ESPECIAL AGENCIA NACIONAL DE DEFENSA JURÍDICA DEL ESTADO",504,2.1130889381221643]
[900514813,"UNIDAD ADMINISTRATIVA ESPECIAL - AGENCIA NACIONAL DE CONTRATACIÓN PÚBLICA - COLOMBIA COMPRA EFICIENTE.",391,1.0563482347338371]
[900523392,"UNIDAD DE SERVICIOS PENITENCIARIOS Y CARCELARIOS - USPEC",417,0.95985054736417297]
[844002071,"UNIVERSIDADES PÚBLICAS - UNIVERSIDAD INTERNACIONAL DEL TROPICO AMERICANO",""]
[900639630,"DIRECCIÓN NACIONAL DE BOMBEROS",1634,2.1674192184477876]
[900657800,"UNIDAD ADMINISTRATIVA ESPECIAL UNIDAD DE PROYECCIÓN NORMATIVA Y ESTUDIOS DE REGULACIÓN FINANCIERA (URF)",1781,2]
[800225340,"UNIVERSIDADES PÚBLICAS - UNIVERSIDAD MILITAR NUEVA GRANADA",""]
[900852998,"AGENCIA NACIONAL DE SEGURIDAD VIAL",1770,2.8946532411887347]
[900894833,"DIRECCIÓN DE VETERANOS Y REHABILITACIÓN INCLUSIVA",124,0.26886855405249027]
[900948953,"AGENCIA NACIONAL DE TIERRAS - ANT",1699,7.0217090150501565E-2]
[900948958,"AGENCIA DE DESARROLLO RURAL - ADR",1700,3.0720580841297256]
[901006886,"AGENCIA DE RENOVACIÓN DEL TERRITORIO – ART - GESTIÓN GENERAL ",1772,2.0133279397897326]
[901140004,"JURISDICCIÓN ESPECIAL PARA LA PAZ - GESTIÓN GENERAL ",2921,2.4886002687064908]
[860512780,"UNIVERSIDADES PÚBLICAS - UNIVERSIDAD NACIONAL ABIERTA Y A DISTANCIA UNAD",""]
[899999063,"UNIVERSIDADES PÚBLICAS - UNIVERSIDAD NACIONAL DE COLOMBIA",""]
[901158482,"UNIDAD DE BÚSQUEDA DE PERSONAS DADAS POR DESAPARECIDAS EN EL CONTEXTO Y EN RAZÓN DEL CONFLICTO ARMADO (UBPD)",3009,2]
[899999124,"UNIVERSIDADES PÚBLICAS - UNIVERSIDAD PEDAGOGICA NACIONAL",""]
[891800330,"UNIVERSIDADES PÚBLICAS - UNIVERSIDAD PEDAGOGICA Y TECNOLOGICA DE COLOMBIA",""]
[892300285,"UNIVERSIDADES PÚBLICAS - UNIVERSIDAD POPULAR DEL CESAR",""]
[891180084,"UNIVERSIDADES PÚBLICAS - UNIVERSIDAD SURCOLOMBIANA",""]
[901717412,"CONSEJO NACIONAL ELECTORAL",437,0.61067269650432732]
[891480035,"UNIVERSIDADES PÚBLICAS - UNIVERSIDAD TECNOLOGICA DE PEREIRA",""]
[891680089,"UNIVERSIDADES PÚBLICAS - UNIVERSIDAD TECNOLOGICA DEL CHOCO DIEGO LUIS CORDOBA",""]

{"sheet":"Apropiaciones","index":4,"n_rows":227,"n_cols":7,"rows_kept":227,"cut":false,"hidden":true,"merged":[]}
["NIT","Entidad ","Apropiaciones 2025",null,null,null,"Se debe validar cual es "]
[900948958,"AGENCIA DE DESARROLLO RURAL - ADR",null,null,null,null,"Se debe validar si está en ekogui "]
[901006886,"AGENCIA DE RENOVACIÓN DEL TERRITORIO – ART - GESTIÓN GENERAL ",null,null,null,null,"No presentan novedad "]
[899999162,"AGENCIA LOGÍSTICA DE LAS FUERZAS MILITARES"]
[830127607,"AGENCIA NACIONAL DE HIDROCARBUROS - ANH"]
[830125996,"AGENCIA NACIONAL DE INFRAESTRUCTURA"]
[900500018,"AGENCIA NACIONAL DE MINERÍA - ANM"]
[900852998,"AGENCIA NACIONAL DE SEGURIDAD VIAL"]
[900948953,"AGENCIA NACIONAL DE TIERRAS - ANT"]
[900334265,"AGENCIA NACIONAL DEL ESPECTRO - ANE"]
[900483991,"AGENCIA NACIONAL INMOBILIARIA VIRGILIO BARCO VARGAS"]
[900477169,"AGENCIA PARA LA REINCORPORACIÓN Y LA NORMALIZACIÓN - ARN"]
[900484852,"AGENCIA PRESIDENCIAL DE COOPERACIÓN INTERNACIONAL DE COLOMBIA, APC - COLOMBIA"]
[800128835,"ARCHIVO GENERAL DE LA NACIÓN"]
[900039527,"ARMADA"]
[830065741,"AUDITORÍA GENERAL DE LA REPÚBLICA - GESTIÓN GENERAL"]
[900479669,"AUTORIDAD NACIONAL DE ACUICULTURA Y PESCA - AUNAP"]
[900467239,"AUTORIDAD NACIONAL DE LICENCIAS AMBIENTALES ANLA"]
[899999118,"CAJA DE RETIRO DE LAS FUERZAS MILITARES"]
[899999073,"CAJA DE SUELDOS DE RETIRO DE LA POLICÍA NACIONAL"]
[899999098,"CÁMARA DE REPRESENTANTES"]
[900492141,"CENTRO DE MEMORIA HISTÓRICA"]
[860016951,"CLUB MILITAR DE OFICIALES"]
[800230729,"COMANDO GENERAL"]
[830000212,"COMISIÓN DE REGULACIÓN DE AGUA POTABLE Y SANEAMIENTO BÁSICO CRA"]
[900034993,"COMISIÓN DE REGULACIÓN DE ENERGÍA Y GAS (CREG)"]
[899999055,"COMISIÓN DE REGULACIÓN DE INFRAESTRUCTURA Y TRANSPORTE"]
[800093816,"COMISIÓN NACIONAL DE DISCIPLINA JUDICIAL"]
[900003409,"COMISIÓN NACIONAL DEL SERVICIO CIVIL"]
[901179431,"COMISIÓN PARA EL ESCLARECIMIENTO DE LA VERDAD, LA  CONVIVENCIA Y LA NO REPETICIÓN EN LIQUIDACIÓN"]
[830079479,"COMPUTADORES PARA EDUCAR CPE"]
[800093816,"CONSEJO DE ESTADO"]
[901717412,"CONSEJO NACIONAL ELECTORAL"]
[800093816,"CONSEJO SUPERIOR DE LA JUDICATURA"]
[899999067,"CONTRALORÍA GENERAL DE LA REPÚBLICA - GESTIÓN GENERAL"]
[823000077,"CORPORACIÓN  PARA EL DESARROLLO SOSTENIBLE DE LA MOJANA Y EL SAN JORGE (CORPOMOJANA)"]
[838000009,"CORPORACIÓN  PARA EL DESARROLLO SOSTENIBLE DEL NORTE Y ORIENTE DE LA AMAZONIA (CDA)"]
[901144049,"CORPORACIÓN AGENCIA NACIONAL DE GOBIERNO DIGITAL - AND"]
[800252843,"CORPORACIÓN AUTÓNOMA REGIONAL DE BOYACÁ (CORPOBOYACÁ)"]
[890803005,"CORPORACIÓN AUTÓNOMA REGIONAL DE CALDAS (CORPOCALDAS)"]
[800252037,"CORPORACIÓN AUTÓNOMA REGIONAL DE CHIVOR (CORPOCHIVOR)"]
[892115314,"CORPORACIÓN AUTÓNOMA REGIONAL DE LA  GUAJIRA (CORPOGUAJIRA)"]
[890505253,"CORPORACIÓN AUTÓNOMA REGIONAL DE LA FRONTERA NORORIENTAL (CORPONOR)"]
[832000283,"CORPORACIÓN AUTÓNOMA REGIONAL DE LA ORINOQUIA (CORPORINOQUIA)"]
[891000627,"CORPORACIÓN AUTÓNOMA REGIONAL DE LOS VALLES DEL SINÚ Y SAN JORGE (CVS)"]
[891222322,"CORPORACIÓN AUTÓNOMA REGIONAL DE NARIÑO (CORPONARIÑO)"]
[891410354,"CORPORACIÓN AUTÓNOMA REGIONAL DE RISARALDA (CARDER)"]
[804000292,"CORPORACIÓN AUTÓNOMA REGIONAL DE SANTANDER (CAS)"]
[823000050,"CORPORACIÓN AUTÓNOMA REGIONAL DE SUCRE (CARSUCRE)"]
[800255580,"CORPORACIÓN AUTÓNOMA REGIONAL DEL ALTO MAGDALENA (CAM)"]
[802000339,"CORPORACIÓN AUTÓNOMA REGIONAL DEL ATLÁNTICO (CRA)"]
[800254453,"CORPORACIÓN AUTÓNOMA REGIONAL DEL CANAL DEL DIQUE (CARDIQUE)"]
[891501885,"CORPORACIÓN AUTÓNOMA REGIONAL DEL CAUCA (CRC)"]
[811000231,"CORPORACIÓN AUTÓNOMA REGIONAL DEL CENTRO DE ANTIOQUIA (CORANTIOQUIA)"]
[892301483,"CORPORACIÓN AUTÓNOMA REGIONAL DEL CESAR (CORPOCESAR)"]
[832000171,"CORPORACIÓN AUTÓNOMA REGIONAL DEL GUAVIO (CORPOGUAVIO)"]
[800099287,"CORPORACIÓN AUTÓNOMA REGIONAL DEL MAGDALENA (CORPAMAG)"]
[890000447,"CORPORACIÓN AUTÓNOMA REGIONAL DEL QUINDÍO (CRQ)"]
[806000327,"CORPORACIÓN AUTÓNOMA REGIONAL DEL SUR DE BOLÍVAR (CSB)"]
[890704536,"CORPORACIÓN AUTÓNOMA REGIONAL DEL TOLIMA (CORTOLIMA)"]
[899999238,"CORPORACIÓN AUTÓNOMA REGIONAL PARA EL DESARROLLO SOSTENIBLE DEL CHOCO (CODECHOCO)"]
[890201573,"CORPORACIÓN AUTÓNOMA REGIONAL PARA LA DEFENSA DE LA MESETA DE BUCARAMANGA (CDMB)"]
[800237214,"CORPORACIÓN NACIONAL PARA LA RECONSTRUCCIÓN DE LA CUENCA DEL RIO PÁEZ Y ZONAS ALEDAÑAS NASA KI WE"]
[827000031,"CORPORACIÓN PARA EL DESARROLLO SOSTENIBLE DEL ARCHIPIÉLAGO DE SAN ANDRES, PROVIDENCIA Y SANTA CATALINA (CORALINA)"]
[822000091,"CORPORACIÓN PARA EL DESARROLLO SOSTENIBLE DEL ÁREA DE MANEJO ESPECIAL LA MACARENA (CORMACARENA)"]
[800252844,"CORPORACIÓN PARA EL DESARROLLO SOSTENIBLE DEL SUR DE LA AMAZONIA (CORPOAMAZONIA)"]
[890907748,"CORPORACIÓN PARA EL DESARROLLO SOSTENIBLE DEL URABÁ (CORPOURABÁ)"]
[800093816,"CORTE CONSTITUCIONAL"]
[800093816,"CORTE SUPREMA DE JUSTICIA"]
[899999717,"DEFENSA CIVIL COLOMBIANA, GUILLERMO LEÓN VALENCIA"]
[800186061,"DEFENSORÍA DEL PUEBLO"]
[899999020,"DEPARTAMENTO ADMINISTRATIVO DE LA FUNCIÓN PÚBLICA- GESTIÓN GENERAL"]
[900475460,"DEPARTAMENTO ADMINISTRATIVO DIRECCIÓN NACIONAL DE INTELIGENCIA - GESTIÓN GENERAL"]
[899999027,"DEPARTAMENTO ADMINISTRATIVO NACIONAL DE ESTADÍSTICA (DANE) - GESTIÓN GENERAL"]
[899999011,"DEPARTAMENTO ADMINISTRATIVO NACIONAL DE PLANEACIÓN - GESTIÓN GENERAL"]
[900039533,"DEPARTAMENTO ADMINISTRATIVO PARA LA PROSPERIDAD SOCIAL - GESTIÓN GENERAL"]
["830114475","DIRECCIÓN DE LA AUTORIDAD NACIONAL DE CONSULTA PREVIA"]
[901352963,"DIRECCIÓN DE SUSTITUCIÓN DE CULTIVOS USO ILÍCITO"]
[900894833,"DIRECCIÓN DE VETERANOS Y REHABILITACIÓN INCLUSIVA"]
[830115297,"DIRECCIÓN GENERAL DE COMERCIO EXTERIOR"]
[830027904,"DIRECCIÓN GENERAL MARÍTIMA (DIMAR)"]
[900639630,"DIRECCIÓN NACIONAL DE BOMBEROS"]
[800185929,"DIRECCIÓN NACIONAL DEL DERECHO DE AUTOR"]
[800130632,"EJÉRCITO"]
[899999054,"ESCUELA SUPERIOR DE ADMINISTRACIÓN PÚBLICA (ESAP)"]
[860523694,"ESCUELA TECNOLÓGICA INSTITUTO TÉCNICO CENTRAL"]
[800152783,"FISCALÍA GENERAL DE LA NACIÓN - GESTIÓN GENERAL"]
[900450205,"FONDO ADAPTACIÓN"]
[800252683,"FONDO DE BIENESTAR SOCIAL DE LA CONTRALORÍA GENERAL DE LA REPÚBLICA"]
[899999734,"FONDO DE PREVISIÓN SOCIAL DEL CONGRESO - CESANTÍAS Y VIVIENDA"]
[899999734,"FONDO DE PREVISIÓN SOCIAL DEL CONGRESO - PENSIONES"]
[901148337,"FONDO ESPECIAL PARA LA ADMINISTRACIÓN DE BIENES DE LA FISCALÍA GENERAL DE LA NACIÓN"]
[830025267,"FONDO NACIONAL AMBIENTAL - GESTIÓN GENERAL"]
[890026982,"FONDO NACIONAL DE VIVIENDA - FONVIVIENDA"]
[800112806,"FONDO PASIVO SOCIAL DE FERROCARRILES NACIONALES DE COLOMBIA - SALUD "]
[800112806,"FONDO PASIVO SOCIAL DE FERROCARRILES NACIONALES DE COLOMBIA -PENSIONES"]
[860020227,"FONDO ROTATORIO DE LA POLICÍA - GESTIÓN GENERAL"]
[899999737,"FONDO ROTATORIO DE LA REGISTRADURÍA"]
[800072977,"FONDO ROTATORIO DEL DANE"]
[860511071,"FONDO ROTATORIO DEL MINISTERIO DE RELACIONES EXTERIORES"]
[830085129,"FONDO SOCIAL DE VIVIENDA DE LA REGISTRADURÍA NACIONAL DEL ESTADO CIVIL"]
[800131648,"FONDO ÚNICO DE TECNOLOGÍAS DE LA INFORMACIÓN Y LAS COMUNICACIONES"]
[899999102,"FUERZA AÉREA"]
[830040256,"HOSPITAL MILITAR"]
[899999096,"INSTITUTO CARO Y CUERVO"]
[860041247,"INSTITUTO CASAS FISCALES DEL EJÉRCITO"]
[899999069,"INSTITUTO COLOMBIANO AGROPECUARIO (ICA)"]
[830067892,"INSTITUTO COLOMBIANO DE ANTROPOLOGÍA E HISTORIA"]
[800213389,"INSTITUTO COLOMBIANO DE BIENESTAR FAMILIAR (ICBF)"]
[830000602,"INSTITUTO DE HIDROLOGÍA, METEOROLOGÍA Y ESTUDIOS AMBIENTALES- IDEAM"]
[899999048,"INSTITUTO DE PLANIFICACIÓN Y PROMOCIÓN DE SOLUCIONES  ENERGÉTICAS PARA LAS ZONAS NO INTERCONECTADAS - IPSE"]
[899999004,"INSTITUTO GEOGRÁFICO AGUSTÍN CODAZZI - IGAC"]
[892400461,"INSTITUTO NACIONAL DE FORMACIÓN TÉCNICA PROFESIONAL DE SAN ANDRES Y PROVIDENCIA"]
[860402193,"INSTITUTO NACIONAL DE FORMACIÓN TÉCNICA PROFESIONAL DE SAN JUAN DEL CESAR"]
[800150861,"INSTITUTO NACIONAL DE MEDICINA LEGAL Y CIENCIAS FORENSES"]
[900494393,"INSTITUTO NACIONAL DE METROLOGÍA - INM"]
[899999403,"INSTITUTO NACIONAL DE SALUD (INS)"]
[800215807,"INSTITUTO NACIONAL DE VÍAS"]
[830000167,"INSTITUTO NACIONAL DE VIGILANCIA DE MEDICAMENTOS Y ALIMENTOS - INVIMA"]
[860015971,"INSTITUTO NACIONAL PARA CIEGOS (INCI)"]
[860016627,"INSTITUTO NACIONAL PARA SORDOS (INSOR)"]
[800215546,"INSTITUTO NACIONAL PENITENCIARIO Y CARCELARIO - INPEC"]
[800248004,"INSTITUTO TÉCNICO NACIONAL DE COMERCIO \"SIMÓN RODRÍGUEZ\" DE CALI"]
[800173719,"INSTITUTO TOLIMENSE DE FORMACIÓN TÉCNICA PROFESIONAL"]
[901140004,"JURISDICCIÓN ESPECIAL PARA LA PAZ - GESTIÓN GENERAL "]
[899999028,"MINISTERIO DE AGRICULTURA Y DESARROLLO RURAL - GESTIÓN GENERAL"]
[830115395,"MINISTERIO DE AMBIENTE Y DESARROLLO SOSTENIBLE - GESTIÓN GENERAL"]
[899999296,"MINISTERIO DE CIENCIA, TECNOLOGÍA E INNOVACIÓN - GESTIÓN GENERAL"]
[830115297,"MINISTERIO DE COMERCIO INDUSTRIA TURISMO - GESTIÓN GENERAL"]
[830034348,"MINISTERIO DE CULTURA - GESTIÓN GENERAL"]
[899999003,"MINISTERIO DE DEFENSA NACIONAL - GESTIÓN GENERAL"]
[899999003,"MINISTERIO DE DEFENSA NACIONAL - SALUD"]
[899999090,"MINISTERIO DE HACIENDA Y CRÉDITO PÚBLICO - GESTIÓN GENERAL"]
[900457461,"MINISTERIO DE JUSTICIA Y DEL DERECHO - GESTIÓN GENERAL"]
[899999022,"MINISTERIO DE MINAS Y ENERGÍA - GESTIÓN GENERAL"]
[899999042,"MINISTERIO DE RELACIONES EXTERIORES - GESTIÓN GENERAL"]
[900474727,"MINISTERIO DE SALUD Y PROTECCIÓN SOCIAL - GESTIÓN GENERAL"]
[899999053,"MINISTERIO DE TECNOLOGÍAS DE LA INFORMACIÓN Y LAS COMUNICACIONES - GESTIÓN GENERAL"]
[899999055,"MINISTERIO DE TRANSPORTE - GESTIÓN GENERAL"]
[900463725,"MINISTERIO DE VIVIENDA, CIUDAD Y TERRITORIO - GESTIÓN GENERAL"]
[899999306,"MINISTERIO DEL DEPORTE - GESTIÓN GENERAL "]
[830114475,"MINISTERIO DEL INTERIOR - GESTIÓN GENERAL"]
[830115226,"MINISTERIO DEL TRABAJO - GESTIÓN GENERAL"]
[899999001,"MINISTERIO EDUCACIÓN NACIONAL - GESTIÓN GENERAL"]
[8300157281,"MINISTERIO PUBLICO - INSTITUTO DE ESTUDIOS DEL MINISTERIO PUBLICO"]
[830016624,"PARQUES NACIONALES NATURALES DE COLOMBIA"]
["900373379","POLICÍA NACIONAL - EDUCACIÓN"]
[800141397,"POLICÍA NACIONAL - GESTIÓN GENERAL"]
[830041314,"POLICÍA NACIONAL - SALUD"]
[899999083,"PRESIDENCIA DE LA REPÚBLICA - GESTIÓN GENERAL"]
[899999119,"PROCURADURÍA GENERAL DE LA NACIÓN - GESTIÓN GENERAL"]
[899999040,"REGISTRADURÍA NACIONAL DEL ESTADO CIVIL - GESTIÓN GENERAL"]
[899999103,"SENADO DE LA REPÚBLICA"]
[899999090,"SERVICIO DE LA DEUDA PÚBLICA NACIONAL"]
[899999294,"SERVICIO GEOLÓGICO COLOMBIANO"]
[899999034,"SERVICIO NACIONAL DE APRENDIZAJE (SENA)"]
[800176089,"SUPERINTENDENCIA DE INDUSTRIA Y COMERCIO"]
[830053043,"SUPERINTENDENCIA DE LA ECONOMÍA SOLIDARIA"]
[899999007,"SUPERINTENDENCIA DE NOTARIADO Y REGISTRO"]
[800170433,"SUPERINTENDENCIA DE PUERTOS Y TRANSPORTE"]
[800250984,"SUPERINTENDENCIA DE SERVICIOS PÚBLICOS DOMICILIARIOS"]
[899999086,"SUPERINTENDENCIA DE SOCIEDADES"]
[860503600,"SUPERINTENDENCIA DE SUBSIDIO FAMILIAR"]
[800217123,"SUPERINTENDENCIA DE VIGILANCIA Y SEGURIDAD PRIVADA"]
[890999057,"SUPERINTENDENCIA FINANCIERA DE COLOMBIA"]
[860062187,"SUPERINTENDENCIA NACIONAL DE SALUD"]
[800093816,"TRIBUNALES Y JUZGADOS"]
[900514813,"UNIDAD ADMINISTRATIVA ESPECIAL - AGENCIA NACIONAL DE CONTRATACIÓN PÚBLICA - COLOMBIA COMPRA EFICIENTE."]
[900528648,"UNIDAD ADMINISTRATIVA ESPECIAL AGENCIA DEL INSPECTOR GENERAL DE TRIBUTOS, RENTAS Y CONTRIBUCIONES PARAFISCALES (ITRC)"]
[900507741,"UNIDAD ADMINISTRATIVA ESPECIAL AGENCIA NACIONAL DE DEFENSA JURÍDICA DEL ESTADO"]
[901377527,"UNIDAD ADMINISTRATIVA ESPECIAL ALIMENTACIÓN ESCOLAR"]
[830002593,"UNIDAD ADMINISTRATIVA ESPECIAL COMISIÓN DE REGULACIÓN DE COMUNICACIONES"]
[830025406,"UNIDAD ADMINISTRATIVA ESPECIAL CONTADURÍA GENERAL DE LA NACIÓN"]
[900498879,"UNIDAD ADMINISTRATIVA ESPECIAL DE GESTIÓN DE RESTITUCIÓN DE TIERRAS DESPOJADAS"]
[900373913,"UNIDAD ADMINISTRATIVA ESPECIAL DE GESTIÓN PENSIONAL Y CONTRIBUCIONES PARAFISCALES DE LA PROTECCIÓN SOCIAL (UGPPP) - GESTIÓN GENERAL"]
[899999059,"UNIDAD ADMINISTRATIVA ESPECIAL DE LA AERONÁUTICA CIVIL"]
[900384997,"UNIDAD ADMINISTRATIVA ESPECIAL DE LA JUSTICIA PENAL MILITAR Y POLICIAL"]
[899999050,"UNIDAD ADMINISTRATIVA ESPECIAL DE ORGANIZACIONES SOLIDARIAS"]
[900678508,"UNIDAD ADMINISTRATIVA ESPECIAL DEL SERVICIO PÚBLICO DE EMPLEO"]
[800197268,"UNIDAD ADMINISTRATIVA ESPECIAL DIRECCIÓN DE IMPUESTOS Y ADUANAS NACIONALES"]
[899999327,"UNIDAD ADMINISTRATIVA ESPECIAL FONDO NACIONAL DE ESTUPEFACIENTES"]
[900180739,"UNIDAD ADMINISTRATIVA ESPECIAL JUNTA CENTRAL CONTADORES"]
[900477235,"UNIDAD ADMINISTRATIVA ESPECIAL MIGRACIÓN COLOMBIA"]
[900657800,"UNIDAD ADMINISTRATIVA ESPECIAL UNIDAD DE PROYECCIÓN NORMATIVA Y ESTUDIOS DE REGULACIÓN FINANCIERA (URF)"]
[900490473,"UNIDAD DE ATENCIÓN Y REPARACIÓN INTEGRAL A LAS VÍCTIMAS"]
[901158482,"UNIDAD DE BÚSQUEDA DE PERSONAS DADAS POR DESAPARECIDAS EN EL CONTEXTO Y EN RAZÓN DEL CONFLICTO ARMADO (UBPD)"]
[830068074,"UNIDAD DE INFORMACIÓN Y ANÁLISIS FINANCIERO"]
[901525615,"UNIDAD DE PLANEACIÓN DEL SECTOR DE INFRAESTRUCTURA DE TRANSPORTE"]
[830000282,"UNIDAD DE PLANEACION MINERO ENERGÉTICA - UPME"]
[900479658,"UNIDAD DE PLANIFICACIÓN DE TIERRAS RURALES, ADECUACIÓN DE TIERRAS Y USOS AGROPECUARIOS (UPRA)"]
[900523392,"UNIDAD DE SERVICIOS PENITENCIARIOS Y CARCELARIOS - USPEC"]
[900475780,"UNIDAD NACIONAL DE PROTECCIÓN - UNP"]
[900478966,"UNIDAD NACIONAL PARA LA GESTIÓN DEL RIESGO DE DESASTRES"]
[817002466,"UNIVERSIDADES PÚBLICAS - UNIVERSIDAD AUTÓNOMA INDÍGENA INTERCULTURAL UAIIN CRIC"]
[800144829,"UNIVERSIDADES PÚBLICAS - UNIVERSIDAD COLEGIO MAYOR DE CUNDINAMARCA"]
[890980040,"UNIVERSIDADES PÚBLICAS - UNIVERSIDAD DE ANTIOQUIA"]
[890801063,"UNIVERSIDADES PÚBLICAS - UNIVERSIDAD DE CALDAS"]
[890480123,"UNIVERSIDADES PÚBLICAS - UNIVERSIDAD DE CARTAGENA"]
[891080031,"UNIVERSIDADES PÚBLICAS - UNIVERSIDAD DE CORDOBA"]
[890680062,"UNIVERSIDADES PÚBLICAS - UNIVERSIDAD DE CUNDINAMARCA"]
[891190346,"UNIVERSIDADES PÚBLICAS - UNIVERSIDAD DE LA AMAZONIA"]
[892115029,"UNIVERSIDADES PÚBLICAS - UNIVERSIDAD DE LA GUAJIRA"]
[892000757,"UNIVERSIDADES PÚBLICAS - UNIVERSIDAD DE LOS LLANOS"]
[800118954,"UNIVERSIDADES PÚBLICAS - UNIVERSIDAD DE NARIÑO"]
[890501510,"UNIVERSIDADES PÚBLICAS - UNIVERSIDAD DE PAMPLONA"]
[892200323,"UNIVERSIDADES PÚBLICAS - UNIVERSIDAD DE SUCRE"]
[890102257,"UNIVERSIDADES PÚBLICAS - UNIVERSIDAD DEL ATLANTICO"]
[891500319,"UNIVERSIDADES PÚBLICAS - UNIVERSIDAD DEL CAUCA"]
[891780111,"UNIVERSIDADES PÚBLICAS - UNIVERSIDAD DEL MAGDALENA"]
[835000300,"UNIVERSIDADES PÚBLICAS - UNIVERSIDAD DEL PACIFICO"]
[890000432,"UNIVERSIDADES PÚBLICAS - UNIVERSIDAD DEL QUINDIO"]
[890700640,"UNIVERSIDADES PÚBLICAS - UNIVERSIDAD DEL TOLIMA"]
[890399010,"UNIVERSIDADES PÚBLICAS - UNIVERSIDAD DEL VALLE"]
[899999230,"UNIVERSIDADES PÚBLICAS - UNIVERSIDAD DISTRITAL FRANCISCO JOSE DE CALDAS"]
[890500622,"UNIVERSIDADES PÚBLICAS - UNIVERSIDAD FRANCISCO DE PAULA SANTANDER"]
[800163130,"UNIVERSIDADES PÚBLICAS - UNIVERSIDAD FRANCISCO DE PAULA SANTANDER SECCIONAL OCAÑA"]
[890201213,"UNIVERSIDADES PÚBLICAS - UNIVERSIDAD INDUSTRIAL DE SANTANDER"]
[844002071,"UNIVERSIDADES PÚBLICAS - UNIVERSIDAD INTERNACIONAL DEL TROPICO AMERICANO"]
[800225340,"UNIVERSIDADES PÚBLICAS - UNIVERSIDAD MILITAR NUEVA GRANADA"]
[860512780,"UNIVERSIDADES PÚBLICAS - UNIVERSIDAD NACIONAL ABIERTA Y A DISTANCIA UNAD"]
[899999063,"UNIVERSIDADES PÚBLICAS - UNIVERSIDAD NACIONAL DE COLOMBIA"]
[899999124,"UNIVERSIDADES PÚBLICAS - UNIVERSIDAD PEDAGOGICA NACIONAL"]
[891800330,"UNIVERSIDADES PÚBLICAS - UNIVERSIDAD PEDAGOGICA Y TECNOLOGICA DE COLOMBIA"]
[892300285,"UNIVERSIDADES PÚBLICAS - UNIVERSIDAD POPULAR DEL CESAR"]
[891180084,"UNIVERSIDADES PÚBLICAS - UNIVERSIDAD SURCOLOMBIANA"]
[891480035,"UNIVERSIDADES PÚBLICAS - UNIVERSIDAD TECNOLOGICA DE PEREIRA"]
[891680089,"UNIVERSIDADES PÚBLICAS - UNIVERSIDAD TECNOLOGICA DEL CHOCO DIEGO LUIS CORDOBA"]

{"sheet":"Calendario","index":5,"n_rows":228,"n_cols":10,"rows_kept":228,"cut":false,"hidden":true,"merged":[]}
["NIT","Entidad ","Fecha"]
[900948958,"AGENCIA DE DESARROLLO RURAL - ADR","Su entidad debe presentar el plan de aportes del 16 al 20 de febrero",null,null,null,"Su entidad debe presentar el plan de aportes del 17 al 28 de febrero",{"$f":"COUNTIF($C$2:$C$195,G2)","v":0}]
[901006886,"AGENCIA DE RENOVACIÓN DEL TERRITORIO – ART - GESTIÓN GENERAL ","Su entidad debe presentar el plan de aportes del 16 al 20 de febrero",null,null,null,"Su entidad debe presentar el plan de aportes del 17 al 28 de marzo",{"$f":"COUNTIF($C$2:$C$195,G3)","v":0}]
[899999162,"AGENCIA LOGÍSTICA DE LAS FUERZAS MILITARES","Su entidad debe presentar el plan de aportes del 16 al 20 de febrero",null,null,null,"Su entidad debe presentar el plan de aportes del 03 al 14 de marzo",0]
[830127607,"AGENCIA NACIONAL DE HIDROCARBUROS - ANH","Su entidad debe presentar el plan de aportes del 16 al 20 de febrero"]
[830125996,"AGENCIA NACIONAL DE INFRAESTRUCTURA","Su entidad debe presentar el plan de aportes del 16 al 20 de febrero"]
[900500018,"AGENCIA NACIONAL DE MINERÍA - ANM","Su entidad debe presentar el plan de aportes del 16 al 20 de febrero"]
[900852998,"AGENCIA NACIONAL DE SEGURIDAD VIAL","Su entidad debe presentar el plan de aportes del 16 al 20 de febrero",null,null,null,"Su entidad debe presentar el plan de aportes del 16 al 20 de febrero",{"$f":"COUNTIF($C$2:$C$195,G8)","v":48},null,{"$f":"194/4","v":48.5}]
[900948953,"AGENCIA NACIONAL DE TIERRAS - ANT","Su entidad debe presentar el plan de aportes del 16 al 20 de febrero",null,null,null,"Su entidad debe presentar el plan de aportes del 23 al 27 de febrero",{"$f":"COUNTIF($C$2:$C$195,G9)","v":49}]
[900334265,"AGENCIA NACIONAL DEL ESPECTRO - ANE","Su entidad debe presentar el plan de aportes del 16 al 20 de febrero",null,null,null,"Su entidad debe presentar el plan de aportes del 02 al 06 de marzo",48]
[900483991,"AGENCIA NACIONAL INMOBILIARIA VIRGILIO BARCO VARGAS","Su entidad debe presentar el plan de aportes del 16 al 20 de febrero",null,null,null,"Su entidad debe presentar el plan de aportes del 09 al 13 de marzo",48]
[900477169,"AGENCIA PARA LA REINCORPORACIÓN Y LA NORMALIZACIÓN - ARN","Su entidad debe presentar el plan de aportes del 16 al 20 de febrero"]
[900484852,"AGENCIA PRESIDENCIAL DE COOPERACIÓN INTERNACIONAL DE COLOMBIA, APC - COLOMBIA","Su entidad debe presentar el plan de aportes del 16 al 20 de febrero"]
[800128835,"ARCHIVO GENERAL DE LA NACIÓN","Su entidad debe presentar el plan de aportes del 16 al 20 de febrero"]
[900039527,"ARMADA","Su entidad debe presentar el plan de aportes del 16 al 20 de febrero"]
[830065741,"AUDITORÍA GENERAL DE LA REPÚBLICA - GESTIÓN GENERAL","Su entidad debe presentar el plan de aportes del 16 al 20 de febrero"]
[900479669,"AUTORIDAD NACIONAL DE ACUICULTURA Y PESCA - AUNAP","Su entidad debe presentar el plan de aportes del 16 al 20 de febrero"]
[900467239,"AUTORIDAD NACIONAL DE LICENCIAS AMBIENTALES ANLA","Su entidad debe presentar el plan de aportes del 16 al 20 de febrero"]
[899999118,"CAJA DE RETIRO DE LAS FUERZAS MILITARES","Su entidad debe presentar el plan de aportes del 09 al 13 de marzo"]
[899999073,"CAJA DE SUELDOS DE RETIRO DE LA POLICÍA NACIONAL","Su entidad debe presentar el plan de aportes del 09 al 13 de marzo"]
[899999098,"CÁMARA DE REPRESENTANTES","Su entidad debe presentar el plan de aportes del 09 al 13 de marzo"]
[900492141,"CENTRO DE MEMORIA HISTÓRICA","Su entidad debe presentar el plan de aportes del 16 al 20 de febrero"]
[860016951,"CLUB MILITAR DE OFICIALES","Su entidad debe presentar el plan de aportes del 16 al 20 de febrero"]
[800230729,"COMANDO GENERAL","Su entidad debe presentar el plan de aportes del 16 al 20 de febrero"]
[830000212,"COMISIÓN DE REGULACIÓN DE AGUA POTABLE Y SANEAMIENTO BÁSICO CRA","Su entidad debe presentar el plan de aportes del 16 al 20 de febrero"]
[900034993,"COMISIÓN DE REGULACIÓN DE ENERGÍA Y GAS (CREG)","Su entidad debe presentar el plan de aportes del 16 al 20 de febrero"]
[899999055,"COMISIÓN DE REGULACIÓN DE INFRAESTRUCTURA Y TRANSPORTE","Su entidad debe presentar el plan de aportes del 16 al 20 de febrero"]
[800093816,"COMISIÓN NACIONAL DE DISCIPLINA JUDICIAL","Su entidad debe presentar el plan de aportes del 16 al 20 de febrero"]
[900003409,"COMISIÓN NACIONAL DEL SERVICIO CIVIL","Su entidad debe presentar el plan de aportes del 16 al 20 de febrero"]
[901179431,"COMISIÓN PARA EL ESCLARECIMIENTO DE LA VERDAD, LA  CONVIVENCIA Y LA NO REPETICIÓN EN LIQUIDACIÓN","NO APARECE EN DECRETO 1477 DE 2025"]
[830079479,"COMPUTADORES PARA EDUCAR CPE","Su entidad debe presentar el plan de aportes del 16 al 20 de febrero"]
[800093816,"CONSEJO DE ESTADO","Su entidad debe presentar el plan de aportes del 16 al 20 de febrero"]
[901717412,"CONSEJO NACIONAL ELECTORAL","Su entidad debe presentar el plan de aportes del 16 al 20 de febrero"]
[800093816,"CONSEJO SUPERIOR DE LA JUDICATURA","Su entidad debe presentar el plan de aportes del 16 al 20 de febrero"]
[899999067,"CONTRALORÍA GENERAL DE LA REPÚBLICA - GESTIÓN GENERAL","Su entidad debe presentar el plan de aportes del 16 al 20 de febrero"]
[823000077,"CORPORACIÓN  PARA EL DESARROLLO SOSTENIBLE DE LA MOJANA Y EL SAN JORGE (CORPOMOJANA)","Su entidad debe presentar el plan de aportes del 16 al 20 de febrero"]
[838000009,"CORPORACIÓN  PARA EL DESARROLLO SOSTENIBLE DEL NORTE Y ORIENTE DE LA AMAZONIA (CDA)","Su entidad debe presentar el plan de aportes del 16 al 20 de febrero"]
[901144049,"CORPORACIÓN AGENCIA NACIONAL DE GOBIERNO DIGITAL - AND","Su entidad debe presentar el plan de aportes del 16 al 20 de febrero"]
[800252843,"CORPORACIÓN AUTÓNOMA REGIONAL DE BOYACÁ (CORPOBOYACÁ)","Su entidad debe presentar el plan de aportes del 09 al 13 de marzo"]
[890803005,"CORPORACIÓN AUTÓNOMA REGIONAL DE CALDAS (CORPOCALDAS)","Su entidad debe presentar el plan de aportes del 09 al 13 de marzo"]
[800252037,"CORPORACIÓN AUTÓNOMA REGIONAL DE CHIVOR (CORPOCHIVOR)","Su entidad debe presentar el plan de aportes del 09 al 13 de marzo"]
[892115314,"CORPORACIÓN AUTÓNOMA REGIONAL DE LA  GUAJIRA (CORPOGUAJIRA)","Su entidad debe presentar el plan de aportes del 16 al 20 de febrero"]
[890505253,"CORPORACIÓN AUTÓNOMA REGIONAL DE LA FRONTERA NORORIENTAL (CORPONOR)","Su entidad debe presentar el plan de aportes del 16 al 20 de febrero"]
[832000283,"CORPORACIÓN AUTÓNOMA REGIONAL DE LA ORINOQUIA (CORPORINOQUIA)","Su entidad debe presentar el plan de aportes del 16 al 20 de febrero"]
[891000627,"CORPORACIÓN AUTÓNOMA REGIONAL DE LOS VALLES DEL SINÚ Y SAN JORGE (CVS)","Su entidad debe presentar el plan de aportes del 16 al 20 de febrero"]
[891222322,"CORPORACIÓN AUTÓNOMA REGIONAL DE NARIÑO (CORPONARIÑO)","Su entidad debe presentar el plan de aportes del 16 al 20 de febrero"]
[891410354,"CORPORACIÓN AUTÓNOMA REGIONAL DE RISARALDA (CARDER)","Su entidad debe presentar el plan de aportes del 16 al 20 de febrero"]
[804000292,"CORPORACIÓN AUTÓNOMA REGIONAL DE SANTANDER (CAS)","Su entidad debe presentar el plan de aportes del 16 al 20 de febrero"]
[823000050,"CORPORACIÓN AUTÓNOMA REGIONAL DE SUCRE (CARSUCRE)","Su entidad debe presentar el plan de aportes del 16 al 20 de febrero"]
[800255580,"CORPORACIÓN AUTÓNOMA REGIONAL DEL ALTO MAGDALENA (CAM)","Su entidad debe presentar el plan de aportes del 16 al 20 de febrero"]
[802000339,"CORPORACIÓN AUTÓNOMA REGIONAL DEL ATLÁNTICO (CRA)","Su entidad debe presentar el plan de aportes del 16 al 20 de febrero"]
[800254453,"CORPORACIÓN AUTÓNOMA REGIONAL DEL CANAL DEL DIQUE (CARDIQUE)","Su entidad debe presentar el plan de aportes del 16 al 20 de febrero"]
[891501885,"CORPORACIÓN AUTÓNOMA REGIONAL DEL CAUCA (CRC)","Su entidad debe presentar el plan de aportes del 16 al 20 de febrero"]
[811000231,"CORPORACIÓN AUTÓNOMA REGIONAL DEL CENTRO DE ANTIOQUIA (CORANTIOQUIA)","Su entidad debe presentar el plan de aportes del 16 al 20 de febrero"]
[892301483,"CORPORACIÓN AUTÓNOMA REGIONAL DEL CESAR (CORPOCESAR)","Su entidad debe presentar el plan de aportes del 16 al 20 de febrero"]
[832000171,"CORPORACIÓN AUTÓNOMA REGIONAL DEL GUAVIO (CORPOGUAVIO)","Su entidad debe presentar el plan de aportes del 16 al 20 de febrero"]
[800099287,"CORPORACIÓN AUTÓNOMA REGIONAL DEL MAGDALENA (CORPAMAG)","Su entidad debe presentar el plan de aportes del 09 al 13 de marzo"]
[890000447,"CORPORACIÓN AUTÓNOMA REGIONAL DEL QUINDÍO (CRQ)","Su entidad debe presentar el plan de aportes del 09 al 13 de marzo"]
[806000327,"CORPORACIÓN AUTÓNOMA REGIONAL DEL SUR DE BOLÍVAR (CSB)","Su entidad debe presentar el plan de aportes del 09 al 13 de marzo"]
[890704536,"CORPORACIÓN AUTÓNOMA REGIONAL DEL TOLIMA (CORTOLIMA)","Su entidad debe presentar el plan de aportes del 23 al 27 de febrero"]
[899999238,"CORPORACIÓN AUTÓNOMA REGIONAL PARA EL DESARROLLO SOSTENIBLE DEL CHOCO (CODECHOCO)","Su entidad debe presentar el plan de aportes del 23 al 27 de febrero"]
[890201573,"CORPORACIÓN AUTÓNOMA REGIONAL PARA LA DEFENSA DE LA MESETA DE BUCARAMANGA (CDMB)","Su entidad debe presentar el plan de aportes del 23 al 27 de febrero"]
[800237214,"CORPORACIÓN NACIONAL PARA LA RECONSTRUCCIÓN DE LA CUENCA DEL RIO PÁEZ Y ZONAS ALEDAÑAS NASA KI WE","Su entidad debe presentar el plan de aportes del 23 al 27 de febrero"]
[827000031,"CORPORACIÓN PARA EL DESARROLLO SOSTENIBLE DEL ARCHIPIÉLAGO DE SAN ANDRES, PROVIDENCIA Y SANTA CATALINA (CORALINA)","Su entidad debe presentar el plan de aportes del 23 al 27 de febrero"]
[822000091,"CORPORACIÓN PARA EL DESARROLLO SOSTENIBLE DEL ÁREA DE MANEJO ESPECIAL LA MACARENA (CORMACARENA)","Su entidad debe presentar el plan de aportes del 23 al 27 de febrero"]
[800252844,"CORPORACIÓN PARA EL DESARROLLO SOSTENIBLE DEL SUR DE LA AMAZONIA (CORPOAMAZONIA)","Su entidad debe presentar el plan de aportes del 23 al 27 de febrero"]
[890907748,"CORPORACIÓN PARA EL DESARROLLO SOSTENIBLE DEL URABÁ (CORPOURABÁ)","Su entidad debe presentar el plan de aportes del 23 al 27 de febrero"]
[800093816,"CORTE CONSTITUCIONAL","Su entidad debe presentar el plan de aportes del 23 al 27 de febrero"]
[800093816,"CORTE SUPREMA DE JUSTICIA","Su entidad debe presentar el plan de aportes del 23 al 27 de febrero"]
[899999717,"DEFENSA CIVIL COLOMBIANA, GUILLERMO LEÓN VALENCIA","Su entidad debe presentar el plan de aportes del 23 al 27 de febrero"]
[800186061,"DEFENSORÍA DEL PUEBLO","Su entidad debe presentar el plan de aportes del 23 al 27 de febrero"]
[899999020,"DEPARTAMENTO ADMINISTRATIVO DE LA FUNCIÓN PÚBLICA- GESTIÓN GENERAL","Su entidad debe presentar el plan de aportes del 23 al 27 de febrero"]
[900475460,"DEPARTAMENTO ADMINISTRATIVO DIRECCIÓN NACIONAL DE INTELIGENCIA - GESTIÓN GENERAL","Su entidad debe presentar el plan de aportes del 23 al 27 de febrero"]
[899999027,"DEPARTAMENTO ADMINISTRATIVO NACIONAL DE ESTADÍSTICA (DANE) - GESTIÓN GENERAL","Su entidad debe presentar el plan de aportes del 23 al 27 de febrero"]
[899999011,"DEPARTAMENTO ADMINISTRATIVO NACIONAL DE PLANEACIÓN - GESTIÓN GENERAL","Su entidad debe presentar el plan de aportes del 09 al 13 de marzo"]
[900039533,"DEPARTAMENTO ADMINISTRATIVO PARA LA PROSPERIDAD SOCIAL - GESTIÓN GENERAL","Su entidad debe presentar el plan de aportes del 09 al 13 de marzo"]
["830114475","DIRECCIÓN DE LA AUTORIDAD NACIONAL DE CONSULTA PREVIA","Su entidad debe presentar el plan de aportes del 09 al 13 de marzo"]
[901352963,"DIRECCIÓN DE SUSTITUCIÓN DE CULTIVOS USO ILÍCITO","Su entidad debe presentar el plan de aportes del 23 al 27 de febrero"]
[900894833,"DIRECCIÓN DE VETERANOS Y REHABILITACIÓN INCLUSIVA","Su entidad debe presentar el plan de aportes del 23 al 27 de febrero"]
[830115297,"DIRECCIÓN GENERAL DE COMERCIO EXTERIOR","Su entidad debe presentar el plan de aportes del 23 al 27 de febrero"]
[830027904,"DIRECCIÓN GENERAL MARÍTIMA (DIMAR)","Su entidad debe presentar el plan de aportes del 23 al 27 de febrero"]
[900639630,"DIRECCIÓN NACIONAL DE BOMBEROS","Su entidad debe presentar el plan de aportes del 23 al 27 de febrero"]
[800185929,"DIRECCIÓN NACIONAL DEL DERECHO DE AUTOR","Su entidad debe presentar el plan de aportes del 23 al 27 de febrero"]
[800130632,"EJÉRCITO","Su entidad debe presentar el plan de aportes del 23 al 27 de febrero"]
[899999054,"ESCUELA SUPERIOR DE ADMINISTRACIÓN PÚBLICA (ESAP)","Su entidad debe presentar el plan de aportes del 23 al 27 de febrero"]
[860523694,"ESCUELA TECNOLÓGICA INSTITUTO TÉCNICO CENTRAL","Su entidad debe presentar el plan de aportes del 23 al 27 de febrero"]
[800152783,"FISCALÍA GENERAL DE LA NACIÓN - GESTIÓN GENERAL","Su entidad debe presentar el plan de aportes del 23 al 27 de febrero"]
[900450205,"FONDO ADAPTACIÓN","Su entidad debe presentar el plan de aportes del 23 al 27 de febrero"]
[800252683,"FONDO DE BIENESTAR SOCIAL DE LA CONTRALORÍA GENERAL DE LA REPÚBLICA","Su entidad debe presentar el plan de aportes del 23 al 27 de febrero"]
[899999734,"FONDO DE PREVISIÓN SOCIAL DEL CONGRESO - CESANTÍAS Y VIVIENDA","Su entidad debe presentar el plan de aportes del 23 al 27 de febrero"]
[899999734,"FONDO DE PREVISIÓN SOCIAL DEL CONGRESO - PENSIONES","Su entidad debe presentar el plan de aportes del 23 al 27 de febrero"]
[901148337,"FONDO ESPECIAL PARA LA ADMINISTRACIÓN DE BIENES DE LA FISCALÍA GENERAL DE LA NACIÓN","Su entidad debe presentar el plan de aportes del 23 al 27 de febrero"]
[830025267,"FONDO NACIONAL AMBIENTAL - GESTIÓN GENERAL","Su entidad debe presentar el plan de aportes del 23 al 27 de febrero"]
[830121208,"FONDO NACIONAL DE VIVIENDA - FONVIVIENDA","Su entidad debe presentar el plan de aportes del 23 al 27 de febrero"]
[800112806,"FONDO PASIVO SOCIAL DE FERROCARRILES NACIONALES DE COLOMBIA - SALUD ","Su entidad debe presentar el plan de aportes del 09 al 13 de marzo"]
[800112806,"FONDO PASIVO SOCIAL DE FERROCARRILES NACIONALES DE COLOMBIA -PENSIONES","Su entidad debe presentar el plan de aportes del 09 al 13 de marzo"]
[860020227,"FONDO ROTATORIO DE LA POLICÍA - GESTIÓN GENERAL","Su entidad debe presentar el plan de aportes del 09 al 13 de marzo"]
[899999737,"FONDO ROTATORIO DE LA REGISTRADURÍA","Su entidad debe presentar el plan de aportes del 23 al 27 de febrero"]
[800072977,"FONDO ROTATORIO DEL DANE","Su entidad debe presentar el plan de aportes del 23 al 27 de febrero"]
[860511071,"FONDO ROTATORIO DEL MINISTERIO DE RELACIONES EXTERIORES","Su entidad debe presentar el plan de aportes del 23 al 27 de febrero"]
[830085129,"FONDO SOCIAL DE VIVIENDA DE LA REGISTRADURÍA NACIONAL DEL ESTADO CIVIL","Su entidad debe presentar el plan de aportes del 23 al 27 de febrero"]
[800131648,"FONDO ÚNICO DE TECNOLOGÍAS DE LA INFORMACIÓN Y LAS COMUNICACIONES","Su entidad debe presentar el plan de aportes del 23 al 27 de febrero"]
[899999102,"FUERZA AÉREA","Su entidad debe presentar el plan de aportes del 23 al 27 de febrero"]
[830040256,"HOSPITAL MILITAR","Su entidad debe presentar el plan de aportes del 23 al 27 de febrero"]
[899999096,"INSTITUTO CARO Y CUERVO","Su entidad debe presentar el plan de aportes del 23 al 27 de febrero"]
[860041247,"INSTITUTO CASAS FISCALES DEL EJÉRCITO","Su entidad debe presentar el plan de aportes del 23 al 27 de febrero"]
[899999069,"INSTITUTO COLOMBIANO AGROPECUARIO (ICA)","Su entidad debe presentar el plan de aportes del 23 al 27 de febrero"]
[830067892,"INSTITUTO COLOMBIANO DE ANTROPOLOGÍA E HISTORIA","Su entidad debe presentar el plan de aportes del 23 al 27 de febrero"]
[800213389,"INSTITUTO COLOMBIANO DE BIENESTAR FAMILIAR (ICBF)","Su entidad debe presentar el plan de aportes del 23 al 27 de febrero"]
[830000602,"INSTITUTO DE HIDROLOGÍA, METEOROLOGÍA Y ESTUDIOS AMBIENTALES- IDEAM","Su entidad debe presentar el plan de aportes del 23 al 27 de febrero"]
[899999048,"INSTITUTO DE PLANIFICACIÓN Y PROMOCIÓN DE SOLUCIONES  ENERGÉTICAS PARA LAS ZONAS NO INTERCONECTADAS - IPSE","Su entidad debe presentar el plan de aportes del 23 al 27 de febrero"]
[899999004,"INSTITUTO GEOGRÁFICO AGUSTÍN CODAZZI - IGAC","Su entidad debe presentar el plan de aportes del 23 al 27 de febrero"]
[892400461,"INSTITUTO NACIONAL DE FORMACIÓN TÉCNICA PROFESIONAL DE SAN ANDRES Y PROVIDENCIA","Su entidad debe presentar el plan de aportes del 23 al 27 de febrero"]
[860402193,"INSTITUTO NACIONAL DE FORMACIÓN TÉCNICA PROFESIONAL DE SAN JUAN DEL CESAR","Su entidad debe presentar el plan de aportes del 23 al 27 de febrero"]
[800150861,"INSTITUTO NACIONAL DE MEDICINA LEGAL Y CIENCIAS FORENSES","Su entidad debe presentar el plan de aportes del 09 al 13 de marzo"]
[900494393,"INSTITUTO NACIONAL DE METROLOGÍA - INM","Su entidad debe presentar el plan de aportes del 09 al 13 de marzo"]
[899999403,"INSTITUTO NACIONAL DE SALUD (INS)","Su entidad debe presentar el plan de aportes del 09 al 13 de marzo"]
[800215807,"INSTITUTO NACIONAL DE VÍAS","Su entidad debe presentar el plan de aportes del 02 al 06 de marzo"]
[830000167,"INSTITUTO NACIONAL DE VIGILANCIA DE MEDICAMENTOS Y ALIMENTOS - INVIMA","Su entidad debe presentar el plan de aportes del 02 al 06 de marzo"]
[860015971,"INSTITUTO NACIONAL PARA CIEGOS (INCI)","Su entidad debe presentar el plan de aportes del 02 al 06 de marzo"]
[860016627,"INSTITUTO NACIONAL PARA SORDOS (INSOR)","Su entidad debe presentar el plan de aportes del 02 al 06 de marzo"]
[800215546,"INSTITUTO NACIONAL PENITENCIARIO Y CARCELARIO - INPEC","Su entidad debe presentar el plan de aportes del 02 al 06 de marzo"]
[800248004,"INSTITUTO TÉCNICO NACIONAL DE COMERCIO \"SIMÓN RODRÍGUEZ\" DE CALI","Su entidad debe presentar el plan de aportes del 02 al 06 de marzo"]
[800173719,"INSTITUTO TOLIMENSE DE FORMACIÓN TÉCNICA PROFESIONAL","Su entidad debe presentar el plan de aportes del 02 al 06 de marzo"]
[901140004,"JURISDICCIÓN ESPECIAL PARA LA PAZ - GESTIÓN GENERAL ","Su entidad debe presentar el plan de aportes del 02 al 06 de marzo"]
[899999028,"MINISTERIO DE AGRICULTURA Y DESARROLLO RURAL - GESTIÓN GENERAL","Su entidad debe presentar el plan de aportes del 02 al 06 de marzo"]
[830115395,"MINISTERIO DE AMBIENTE Y DESARROLLO SOSTENIBLE - GESTIÓN GENERAL","Su entidad debe presentar el plan de aportes del 02 al 06 de marzo"]
[899999296,"MINISTERIO DE CIENCIA, TECNOLOGÍA E INNOVACIÓN - GESTIÓN GENERAL","Su entidad debe presentar el plan de aportes del 02 al 06 de marzo"]
[830115297,"MINISTERIO DE COMERCIO INDUSTRIA TURISMO - GESTIÓN GENERAL","Su entidad debe presentar el plan de aportes del 02 al 06 de marzo"]
[830034348,"MINISTERIO DE CULTURA - GESTIÓN GENERAL","Su entidad debe presentar el plan de aportes del 09 al 13 de marzo"]
[899999003,"MINISTERIO DE DEFENSA NACIONAL - GESTIÓN GENERAL","Su entidad debe presentar el plan de aportes del 02 al 06 de marzo"]
[899999003,"MINISTERIO DE DEFENSA NACIONAL - SALUD","Su entidad debe presentar el plan de aportes del 02 al 06 de marzo"]
[899999090,"MINISTERIO DE HACIENDA Y CRÉDITO PÚBLICO - GESTIÓN GENERAL","Su entidad debe presentar el plan de aportes del 02 al 06 de marzo"]
[901733502,"MINISTERIO DE IGUALDAD Y EQUIDAD","Su entidad debe presentar el plan de aportes del 09 al 13 de marzo"]
[900457461,"MINISTERIO DE JUSTICIA Y DEL DERECHO - GESTIÓN GENERAL","Su entidad debe presentar el plan de aportes del 09 al 13 de marzo"]
[899999022,"MINISTERIO DE MINAS Y ENERGÍA - GESTIÓN GENERAL","Su entidad debe presentar el plan de aportes del 02 al 06 de marzo"]
[899999042,"MINISTERIO DE RELACIONES EXTERIORES - GESTIÓN GENERAL","Su entidad debe presentar el plan de aportes del 02 al 06 de marzo"]
[900474727,"MINISTERIO DE SALUD Y PROTECCIÓN SOCIAL - GESTIÓN GENERAL","Su entidad debe presentar el plan de aportes del 02 al 06 de marzo"]
[899999053,"MINISTERIO DE TECNOLOGÍAS DE LA INFORMACIÓN Y LAS COMUNICACIONES - GESTIÓN GENERAL","Su entidad debe presentar el plan de aportes del 02 al 06 de marzo"]
[899999055,"MINISTERIO DE TRANSPORTE - GESTIÓN GENERAL","Su entidad debe presentar el plan de aportes del 02 al 06 de marzo"]
[900463725,"MINISTERIO DE VIVIENDA, CIUDAD Y TERRITORIO - GESTIÓN GENERAL","Su entidad debe presentar el plan de aportes del 02 al 06 de marzo"]
[899999306,"MINISTERIO DEL DEPORTE - GESTIÓN GENERAL ","Su entidad debe presentar el plan de aportes del 02 al 06 de marzo"]
[830114475,"MINISTERIO DEL INTERIOR - GESTIÓN GENERAL","Su entidad debe presentar el plan de aportes del 02 al 06 de marzo"]
[830115226,"MINISTERIO DEL TRABAJO - GESTIÓN GENERAL","Su entidad debe presentar el plan de aportes del 02 al 06 de marzo"]
[899999001,"MINISTERIO EDUCACIÓN NACIONAL - GESTIÓN GENERAL","Su entidad debe presentar el plan de aportes del 02 al 06 de marzo"]
[8300157281,"MINISTERIO PUBLICO - INSTITUTO DE ESTUDIOS DEL MINISTERIO PUBLICO","Su entidad debe presentar el plan de aportes del 02 al 06 de marzo"]
[830016624,"PARQUES NACIONALES NATURALES DE COLOMBIA","Su entidad debe presentar el plan de aportes del 02 al 06 de marzo"]
["900373379","POLICÍA NACIONAL - EDUCACIÓN","Su entidad debe presentar el plan de aportes del 02 al 06 de marzo"]
[800141397,"POLICÍA NACIONAL - GESTIÓN GENERAL","Su entidad debe presentar el plan de aportes del 02 al 06 de marzo"]
[830041314,"POLICÍA NACIONAL - SALUD","Su entidad debe presentar el plan de aportes del 02 al 06 de marzo"]
[899999083,"PRESIDENCIA DE LA REPÚBLICA - GESTIÓN GENERAL","Su entidad debe presentar el plan de aportes del 02 al 06 de marzo"]
[899999119,"PROCURADURÍA GENERAL DE LA NACIÓN - GESTIÓN GENERAL","Su entidad debe presentar el plan de aportes del 02 al 06 de marzo"]
[899999040,"REGISTRADURÍA NACIONAL DEL ESTADO CIVIL - GESTIÓN GENERAL","Su entidad debe presentar el plan de aportes del 02 al 06 de marzo"]
[899999103,"SENADO DE LA REPÚBLICA","Su entidad debe presentar el plan de aportes del 02 al 06 de marzo"]
[899999090,"SERVICIO DE LA DEUDA PÚBLICA NACIONAL","Su entidad debe presentar el plan de aportes del 02 al 06 de marzo"]
[899999294,"SERVICIO GEOLÓGICO COLOMBIANO","Su entidad debe presentar el plan de aportes del 02 al 06 de marzo"]
[899999034,"SERVICIO NACIONAL DE APRENDIZAJE (SENA)","Su entidad debe presentar el plan de aportes del 02 al 06 de marzo"]
[800176089,"SUPERINTENDENCIA DE INDUSTRIA Y COMERCIO","Su entidad debe presentar el plan de aportes del 02 al 06 de marzo"]
[830053043,"SUPERINTENDENCIA DE LA ECONOMÍA SOLIDARIA","Su entidad debe presentar el plan de aportes del 02 al 06 de marzo"]
[899999007,"SUPERINTENDENCIA DE NOTARIADO Y REGISTRO","Su entidad debe presentar el plan de aportes del 02 al 06 de marzo"]
[800170433,"SUPERINTENDENCIA DE PUERTOS Y TRANSPORTE","Su entidad debe presentar el plan de aportes del 02 al 06 de marzo"]
[800250984,"SUPERINTENDENCIA DE SERVICIOS PÚBLICOS DOMICILIARIOS","Su entidad debe presentar el plan de aportes del 02 al 06 de marzo"]
[899999086,"SUPERINTENDENCIA DE SOCIEDADES","Su entidad debe presentar el plan de aportes del 02 al 06 de marzo"]
[860503600,"SUPERINTENDENCIA DE SUBSIDIO FAMILIAR","Su entidad debe presentar el plan de aportes del 02 al 06 de marzo"]
[800217123,"SUPERINTENDENCIA DE VIGILANCIA Y SEGURIDAD PRIVADA","Su entidad debe presentar el plan de aportes del 02 al 06 de marzo"]
[890999057,"SUPERINTENDENCIA FINANCIERA DE COLOMBIA","Su entidad debe presentar el plan de aportes del 02 al 06 de marzo"]
[860062187,"SUPERINTENDENCIA NACIONAL DE SALUD","Su entidad debe presentar el plan de aportes del 02 al 06 de marzo"]
[800093816,"TRIBUNALES Y JUZGADOS","Su entidad debe presentar el plan de aportes del 02 al 06 de marzo"]
[900514813,"UNIDAD ADMINISTRATIVA ESPECIAL - AGENCIA NACIONAL DE CONTRATACIÓN PÚBLICA - COLOMBIA COMPRA EFICIENTE.","Su entidad debe presentar el plan de aportes del 09 al 13 de marzo"]
[900528648,"UNIDAD ADMINISTRATIVA ESPECIAL AGENCIA DEL INSPECTOR GENERAL DE TRIBUTOS, RENTAS Y CONTRIBUCIONES PARAFISCALES (ITRC)","Su entidad debe presentar el plan de aportes del 09 al 13 de marzo"]
[900507741,"UNIDAD ADMINISTRATIVA ESPECIAL AGENCIA NACIONAL DE DEFENSA JURÍDICA DEL ESTADO","Su entidad debe presentar el plan de aportes del 09 al 13 de marzo"]
[901377527,"UNIDAD ADMINISTRATIVA ESPECIAL ALIMENTACIÓN ESCOLAR","Su entidad debe presentar el plan de aportes del 09 al 13 de marzo"]
[830002593,"UNIDAD ADMINISTRATIVA ESPECIAL COMISIÓN DE REGULACIÓN DE COMUNICACIONES","Su entidad debe presentar el plan de aportes del 09 al 13 de marzo"]
[830025406,"UNIDAD ADMINISTRATIVA ESPECIAL CONTADURÍA GENERAL DE LA NACIÓN","Su entidad debe presentar el plan de aportes del 09 al 13 de marzo"]
[900498879,"UNIDAD ADMINISTRATIVA ESPECIAL DE GESTIÓN DE RESTITUCIÓN DE TIERRAS DESPOJADAS","Su entidad debe presentar el plan de aportes del 09 al 13 de marzo"]
[900373913,"UNIDAD ADMINISTRATIVA ESPECIAL DE GESTIÓN PENSIONAL Y CONTRIBUCIONES PARAFISCALES DE LA PROTECCIÓN SOCIAL (UGPPP) - GESTIÓN GENERAL","Su entidad debe presentar el plan de aportes del 09 al 13 de marzo"]
[899999059,"UNIDAD ADMINISTRATIVA ESPECIAL DE LA AERONÁUTICA CIVIL","Su entidad debe presentar el plan de aportes del 09 al 13 de marzo"]
[900384997,"UNIDAD ADMINISTRATIVA ESPECIAL DE LA JUSTICIA PENAL MILITAR Y POLICIAL","Su entidad debe presentar el plan de aportes del 09 al 13 de marzo"]
[899999050,"UNIDAD ADMINISTRATIVA ESPECIAL DE ORGANIZACIONES SOLIDARIAS","Su entidad debe presentar el plan de aportes del 09 al 13 de marzo"]
[900678508,"UNIDAD ADMINISTRATIVA ESPECIAL DEL SERVICIO PÚBLICO DE EMPLEO","Su entidad debe presentar el plan de aportes del 09 al 13 de marzo"]
[800197268,"UNIDAD ADMINISTRATIVA ESPECIAL DIRECCIÓN DE IMPUESTOS Y ADUANAS NACIONALES","Su entidad debe presentar el plan de aportes del 09 al 13 de marzo"]
[899999327,"UNIDAD ADMINISTRATIVA ESPECIAL FONDO NACIONAL DE ESTUPEFACIENTES","Su entidad debe presentar el plan de aportes del 09 al 13 de marzo"]
[900180739,"UNIDAD ADMINISTRATIVA ESPECIAL JUNTA CENTRAL CONTADORES","Su entidad debe presentar el plan de aportes del 09 al 13 de marzo"]
[900477235,"UNIDAD ADMINISTRATIVA ESPECIAL MIGRACIÓN COLOMBIA","Su entidad debe presentar el plan de aportes del 09 al 13 de marzo"]
[900657800,"UNIDAD ADMINISTRATIVA ESPECIAL UNIDAD DE PROYECCIÓN NORMATIVA Y ESTUDIOS DE REGULACIÓN FINANCIERA (URF)","Su entidad debe presentar el plan de aportes del 09 al 13 de marzo"]
[900490473,"UNIDAD DE ATENCIÓN Y REPARACIÓN INTEGRAL A LAS VÍCTIMAS","Su entidad debe presentar el plan de aportes del 09 al 13 de marzo"]
[901158482,"UNIDAD DE BÚSQUEDA DE PERSONAS DADAS POR DESAPARECIDAS EN EL CONTEXTO Y EN RAZÓN DEL CONFLICTO ARMADO (UBPD)","Su entidad debe presentar el plan de aportes del 09 al 13 de marzo"]
[830068074,"UNIDAD DE INFORMACIÓN Y ANÁLISIS FINANCIERO","Su entidad debe presentar el plan de aportes del 09 al 13 de marzo"]
[901525615,"UNIDAD DE PLANEACIÓN DEL SECTOR DE INFRAESTRUCTURA DE TRANSPORTE","Su entidad debe presentar el plan de aportes del 09 al 13 de marzo"]
[830000282,"UNIDAD DE PLANEACION MINERO ENERGÉTICA - UPME","Su entidad debe presentar el plan de aportes del 09 al 13 de marzo"]
[900479658,"UNIDAD DE PLANIFICACIÓN DE TIERRAS RURALES, ADECUACIÓN DE TIERRAS Y USOS AGROPECUARIOS (UPRA)","Su entidad debe presentar el plan de aportes del 09 al 13 de marzo"]
[900523392,"UNIDAD DE SERVICIOS PENITENCIARIOS Y CARCELARIOS - USPEC","Su entidad debe presentar el plan de aportes del 09 al 13 de marzo"]
[900475780,"UNIDAD NACIONAL DE PROTECCIÓN - UNP","Su entidad debe presentar el plan de aportes del 09 al 13 de marzo"]
[900478966,"UNIDAD NACIONAL PARA LA GESTIÓN DEL RIESGO DE DESASTRES","Su entidad debe presentar el plan de aportes del 09 al 13 de marzo"]
[817002466,"UNIVERSIDADES PÚBLICAS - UNIVERSIDAD AUTÓNOMA INDÍGENA INTERCULTURAL UAIIN CRIC","Su entidad debe presentar el plan de aportes del 09 al 13 de marzo"]
[800144829,"UNIVERSIDADES PÚBLICAS - UNIVERSIDAD COLEGIO MAYOR DE CUNDINAMARCA"]
[890980040,"UNIVERSIDADES PÚBLICAS - UNIVERSIDAD DE ANTIOQUIA"]
[890801063,"UNIVERSIDADES PÚBLICAS - UNIVERSIDAD DE CALDAS"]
[890480123,"UNIVERSIDADES PÚBLICAS - UNIVERSIDAD DE CARTAGENA"]
[891080031,"UNIVERSIDADES PÚBLICAS - UNIVERSIDAD DE CORDOBA"]
[890680062,"UNIVERSIDADES PÚBLICAS - UNIVERSIDAD DE CUNDINAMARCA"]
[891190346,"UNIVERSIDADES PÚBLICAS - UNIVERSIDAD DE LA AMAZONIA"]
[892115029,"UNIVERSIDADES PÚBLICAS - UNIVERSIDAD DE LA GUAJIRA"]
[892000757,"UNIVERSIDADES PÚBLICAS - UNIVERSIDAD DE LOS LLANOS"]
[800118954,"UNIVERSIDADES PÚBLICAS - UNIVERSIDAD DE NARIÑO"]
[890501510,"UNIVERSIDADES PÚBLICAS - UNIVERSIDAD DE PAMPLONA"]
[892200323,"UNIVERSIDADES PÚBLICAS - UNIVERSIDAD DE SUCRE"]
[890102257,"UNIVERSIDADES PÚBLICAS - UNIVERSIDAD DEL ATLANTICO"]
[891500319,"UNIVERSIDADES PÚBLICAS - UNIVERSIDAD DEL CAUCA"]
[891780111,"UNIVERSIDADES PÚBLICAS - UNIVERSIDAD DEL MAGDALENA"]
[835000300,"UNIVERSIDADES PÚBLICAS - UNIVERSIDAD DEL PACIFICO"]
[890000432,"UNIVERSIDADES PÚBLICAS - UNIVERSIDAD DEL QUINDIO"]
[890700640,"UNIVERSIDADES PÚBLICAS - UNIVERSIDAD DEL TOLIMA"]
[890399010,"UNIVERSIDADES PÚBLICAS - UNIVERSIDAD DEL VALLE"]
[899999230,"UNIVERSIDADES PÚBLICAS - UNIVERSIDAD DISTRITAL FRANCISCO JOSE DE CALDAS"]
[890500622,"UNIVERSIDADES PÚBLICAS - UNIVERSIDAD FRANCISCO DE PAULA SANTANDER"]
[800163130,"UNIVERSIDADES PÚBLICAS - UNIVERSIDAD FRANCISCO DE PAULA SANTANDER SECCIONAL OCAÑA"]
[890201213,"UNIVERSIDADES PÚBLICAS - UNIVERSIDAD INDUSTRIAL DE SANTANDER"]
[844002071,"UNIVERSIDADES PÚBLICAS - UNIVERSIDAD INTERNACIONAL DEL TROPICO AMERICANO"]
[800225340,"UNIVERSIDADES PÚBLICAS - UNIVERSIDAD MILITAR NUEVA GRANADA"]
[860512780,"UNIVERSIDADES PÚBLICAS - UNIVERSIDAD NACIONAL ABIERTA Y A DISTANCIA UNAD"]
[899999063,"UNIVERSIDADES PÚBLICAS - UNIVERSIDAD NACIONAL DE COLOMBIA"]
[899999124,"UNIVERSIDADES PÚBLICAS - UNIVERSIDAD PEDAGOGICA NACIONAL"]
[891800330,"UNIVERSIDADES PÚBLICAS - UNIVERSIDAD PEDAGOGICA Y TECNOLOGICA DE COLOMBIA"]
[892300285,"UNIVERSIDADES PÚBLICAS - UNIVERSIDAD POPULAR DEL CESAR"]
[891180084,"UNIVERSIDADES PÚBLICAS - UNIVERSIDAD SURCOLOMBIANA"]
[891480035,"UNIVERSIDADES PÚBLICAS - UNIVERSIDAD TECNOLOGICA DE PEREIRA"]
[891680089,"UNIVERSIDADES PÚBLICAS - UNIVERSIDAD TECNOLOGICA DEL CHOCO DIEGO LUIS CORDOBA"]

{"sheet":"Fondo Fiduprevisora","index":6,"n_rows":230,"n_cols":10,"rows_kept":230,"cut":false,"hidden":true,"merged":[]}
["NIT","Entidad ","Retiros (Desembolsos)","Saldo en el Fondo",null,null,"NIT","Entidad ","Retiros (Desembolsos)","Saldo en el Fondo"]
[800072977,"FONDO ROTATORIO DEL DANE",{"$f":"SUMIF(G:J,Tabla3[[#This Row],[NIT]],I:I)","v":0},{"$f":"SUMIF(G:J,Tabla3[[#This Row],[NIT]],J:J)","v":0},null,null,"800093816","RAMA JUDICIAL      ",380918937,263060145482.73999]
[800093816,"COMISIÓN NACIONAL DE DISCIPLINA JUDICIAL",{"$f":"SUMIF(G:J,Tabla3[[#This Row],[NIT]],I:I)","v":380918937},{"$f":"SUMIF(G:J,Tabla3[[#This Row],[NIT]],J:J)","v":263060145482.73999},null,null,"800099287","CORPORACION AUTONOMA REGIONAL DEL MAGDALENA      ",0,134112301.01000001]
[800093816,"CONSEJO DE ESTADO",{"$f":"SUMIF(G:J,Tabla3[[#This Row],[NIT]],I:I)","v":380918937},{"$f":"SUMIF(G:J,Tabla3[[#This Row],[NIT]],J:J)","v":263060145482.73999},null,null,"800128835","ARCHIVO GENERAL DE LA NACION      ",0,30505248.120000001]
[800093816,"CONSEJO SUPERIOR DE LA JUDICATURA",{"$f":"SUMIF(G:J,Tabla3[[#This Row],[NIT]],I:I)","v":380918937},{"$f":"SUMIF(G:J,Tabla3[[#This Row],[NIT]],J:J)","v":263060145482.73999},null,null,"800131648","FONDO DE TECNOLOGIAS DE LA INFORMACION Y LAS COMUN",0,10051106497.34]
[800093816,"CORTE CONSTITUCIONAL",{"$f":"SUMIF(G:J,Tabla3[[#This Row],[NIT]],I:I)","v":380918937},{"$f":"SUMIF(G:J,Tabla3[[#This Row],[NIT]],J:J)","v":263060145482.73999},null,null,"800141397","POLICIA NACIONAL - DIRECCION LOGISTICA Y FINANCIER",104262996276.11,129107609975.53]
[800093816,"CORTE SUPREMA DE JUSTICIA",{"$f":"SUMIF(G:J,Tabla3[[#This Row],[NIT]],I:I)","v":380918937},{"$f":"SUMIF(G:J,Tabla3[[#This Row],[NIT]],J:J)","v":263060145482.73999},null,null,"800150861","INSTITUTO NACIONAL DE MEDICINA LEGAL Y CIENCIAS FO",246281036,162474682.03]
[800093816,"TRIBUNALES Y JUZGADOS",{"$f":"SUMIF(G:J,Tabla3[[#This Row],[NIT]],I:I)","v":380918937},{"$f":"SUMIF(G:J,Tabla3[[#This Row],[NIT]],J:J)","v":263060145482.73999},null,null,"800152783","FISCALIA GENERAL DE LA NACION      ",586697304,125466378740.57001]
[800099287,"CORPORACIÓN AUTÓNOMA REGIONAL DEL MAGDALENA (CORPAMAG)",{"$f":"SUMIF(G:J,Tabla3[[#This Row],[NIT]],I:I)","v":0},{"$f":"SUMIF(G:J,Tabla3[[#This Row],[NIT]],J:J)","v":134112301.01000001},null,null,"800170433","SUPERINTENDENCIA DE PUERTOS Y TRANSPORTE      ",0,2113598631.79]
[800112806,"FONDO PASIVO SOCIAL DE FERROCARRILES NACIONALES DE COLOMBIA - SALUD ",{"$f":"SUMIF(G:J,Tabla3[[#This Row],[NIT]],I:I)","v":0},{"$f":"SUMIF(G:J,Tabla3[[#This Row],[NIT]],J:J)","v":0},null,null,"800176089","SUPERINTENDENCIA INDUSTRIA Y COMERCIO      ",0,2094319880.46]
[800112806,"FONDO PASIVO SOCIAL DE FERROCARRILES NACIONALES DE COLOMBIA -PENSIONES",{"$f":"SUMIF(G:J,Tabla3[[#This Row],[NIT]],I:I)","v":0},{"$f":"SUMIF(G:J,Tabla3[[#This Row],[NIT]],J:J)","v":0},null,null,"800186061","DEFENSORIA DEL PUEBLO      ",548224274,512009075.25]
[800118954,"UNIVERSIDADES PÚBLICAS - UNIVERSIDAD DE NARIÑO",{"$f":"SUMIF(G:J,Tabla3[[#This Row],[NIT]],I:I)","v":0},{"$f":"SUMIF(G:J,Tabla3[[#This Row],[NIT]],J:J)","v":0},null,null,"800197268","U.A.E. DIRECCION DE IMPUESTOS Y ADUANAS NACIONALES",20702608073,52366725311.410004]
[800128835,"ARCHIVO GENERAL DE LA NACIÓN",{"$f":"SUMIF(G:J,Tabla3[[#This Row],[NIT]],I:I)","v":0},{"$f":"SUMIF(G:J,Tabla3[[#This Row],[NIT]],J:J)","v":30505248.120000001},null,null,"800213389","INSTITUTO COLOMBIANO DE BIENESTAR FAMILIAR      ",6722426661.4300003,4570726035.3500004]
[800130632,"EJÉRCITO",{"$f":"SUMIF(G:J,Tabla3[[#This Row],[NIT]],I:I)","v":0},{"$f":"SUMIF(G:J,Tabla3[[#This Row],[NIT]],J:J)","v":0},null,null,"800215546","INSTITUTO NACIONAL PENITENCIARIO Y CARCELARIO-INPE",0,27269271372.830002]
[800131648,"FONDO ÚNICO DE TECNOLOGÍAS DE LA INFORMACIÓN Y LAS COMUNICACIONES",{"$f":"SUMIF(G:J,Tabla3[[#This Row],[NIT]],I:I)","v":0},{"$f":"SUMIF(G:J,Tabla3[[#This Row],[NIT]],J:J)","v":10051106497.34},null,null,"800215807","INSTITUTO NACIONAL DE VIAS      ",1494039922.3099999,24135563164.200001]
[800141397,"POLICÍA NACIONAL - GESTIÓN GENERAL",{"$f":"SUMIF(G:J,Tabla3[[#This Row],[NIT]],I:I)","v":104262996276.11},{"$f":"SUMIF(G:J,Tabla3[[#This Row],[NIT]],J:J)","v":129107609975.53},null,null,"800250881","SUPERINTENDENCIA DE SERVICIOS PUBLICOS      ",8167352420.5,64112487.670000002]
[800144829,"UNIVERSIDADES PÚBLICAS - UNIVERSIDAD COLEGIO MAYOR DE CUNDINAMARCA",{"$f":"SUMIF(G:J,Tabla3[[#This Row],[NIT]],I:I)","v":0},{"$f":"SUMIF(G:J,Tabla3[[#This Row],[NIT]],J:J)","v":0},null,null,"800252683","FDO DE BIENESTAR SOCIAL DE LA CONTRALORI      ",0,43045572.770000003]
[800150861,"INSTITUTO NACIONAL DE MEDICINA LEGAL Y CIENCIAS FORENSES",{"$f":"SUMIF(G:J,Tabla3[[#This Row],[NIT]],I:I)","v":246281036},{"$f":"SUMIF(G:J,Tabla3[[#This Row],[NIT]],J:J)","v":162474682.03},null,null,"800252843","CORPORACION AUTONOMA REGIONAL DE BOYACA CORPOBOYAC",150854083,1170996348.9200001]
[800152783,"FISCALÍA GENERAL DE LA NACIÓN - GESTIÓN GENERAL",{"$f":"SUMIF(G:J,Tabla3[[#This Row],[NIT]],I:I)","v":586697304},{"$f":"SUMIF(G:J,Tabla3[[#This Row],[NIT]],J:J)","v":125466378740.57001},null,null,"800252844","CORPORACION PARA EL DESARROLLO SOSTENIBLE DEL SUR ",31499474,1251919556.25]
[800163130,"UNIVERSIDADES PÚBLICAS - UNIVERSIDAD FRANCISCO DE PAULA SANTANDER SECCIONAL OCAÑA",{"$f":"SUMIF(G:J,Tabla3[[#This Row],[NIT]],I:I)","v":0},{"$f":"SUMIF(G:J,Tabla3[[#This Row],[NIT]],J:J)","v":0},null,null,"800254453","CORPORACION AUTONOMA REGIONAL DEL CANAL DEL DIQUE ",0,3223067531.1700001]
[800170433,"SUPERINTENDENCIA DE PUERTOS Y TRANSPORTE",{"$f":"SUMIF(G:J,Tabla3[[#This Row],[NIT]],I:I)","v":0},{"$f":"SUMIF(G:J,Tabla3[[#This Row],[NIT]],J:J)","v":2113598631.79},null,null,"800255580","CORPORACION  AUTONOMA REGIONAL DEL ALTO MAGDALENA ",0,409764081.31999999]
[800173719,"INSTITUTO TOLIMENSE DE FORMACIÓN TÉCNICA PROFESIONAL",{"$f":"SUMIF(G:J,Tabla3[[#This Row],[NIT]],I:I)","v":0},{"$f":"SUMIF(G:J,Tabla3[[#This Row],[NIT]],J:J)","v":0},null,null,"804000292","CORPORACION AUTONOMA REGIONAL DE SANTANDER CAS    ",0,2046808406.4400001]
[800176089,"SUPERINTENDENCIA DE INDUSTRIA Y COMERCIO",{"$f":"SUMIF(G:J,Tabla3[[#This Row],[NIT]],I:I)","v":0},{"$f":"SUMIF(G:J,Tabla3[[#This Row],[NIT]],J:J)","v":2094319880.46},null,null,"811000231","CORPORACION AUTONOMA REGIONAL DEL CENTRO ANTIOQUIA",0,8720701592.0599995]
[800185929,"DIRECCIÓN NACIONAL DEL DERECHO DE AUTOR",{"$f":"SUMIF(G:J,Tabla3[[#This Row],[NIT]],I:I)","v":0},{"$f":"SUMIF(G:J,Tabla3[[#This Row],[NIT]],J:J)","v":0},null,null,"823000077","CORPOMOJANA      ",0,47396347.490000002]
[800186061,"DEFENSORÍA DEL PUEBLO",{"$f":"SUMIF(G:J,Tabla3[[#This Row],[NIT]],I:I)","v":548224274},{"$f":"SUMIF(G:J,Tabla3[[#This Row],[NIT]],J:J)","v":512009075.25},null,null,"830000167","INSTITUTO NACIONAL DE VIGILANCIA DE MEDICAMENTOS Y",45033934,4070698552.1999998]
[800197268,"UNIDAD ADMINISTRATIVA ESPECIAL DIRECCIÓN DE IMPUESTOS Y ADUANAS NACIONALES",{"$f":"SUMIF(G:J,Tabla3[[#This Row],[NIT]],I:I)","v":20702608073},{"$f":"SUMIF(G:J,Tabla3[[#This Row],[NIT]],J:J)","v":52366725311.410004},null,null,"830000212","COMISION DE REGULACION DE AGUA POTABLE Y      ",748437196.87,435695172.13]
[800213389,"ICBF",{"$f":"SUMIF(G:J,Tabla3[[#This Row],[NIT]],I:I)","v":6722426661.4300003},{"$f":"SUMIF(G:J,Tabla3[[#This Row],[NIT]],J:J)","v":4570726035.3500004},null,null,"830000282","UNIDAD DE PLANEACION MINERO ENERGETICA      ",0,187642351.63]
[800215546,"INSTITUTO NACIONAL PENITENCIARIO Y CARCELARIO - INPEC",{"$f":"SUMIF(G:J,Tabla3[[#This Row],[NIT]],I:I)","v":0},{"$f":"SUMIF(G:J,Tabla3[[#This Row],[NIT]],J:J)","v":27269271372.830002},null,null,"830000602","IINSTITUTO DE HIDROLOGIA METEOROLOGIA Y ESTUDIOS A",0,266543692.47]
[800215807,"INSTITUTO NACIONAL DE VÍAS",{"$f":"SUMIF(G:J,Tabla3[[#This Row],[NIT]],I:I)","v":1494039922.3099999},{"$f":"SUMIF(G:J,Tabla3[[#This Row],[NIT]],J:J)","v":24135563164.200001},null,null,"830002593","COMISION DE REGULACION DE COMUNICACIONES      ",0,13905044.02]
[800217123,"SUPERINTENDENCIA DE VIGILANCIA Y SEGURIDAD PRIVADA",{"$f":"SUMIF(G:J,Tabla3[[#This Row],[NIT]],I:I)","v":0},{"$f":"SUMIF(G:J,Tabla3[[#This Row],[NIT]],J:J)","v":0},null,null,"830016624","PARQUES NACIONALES NATURALES DE COLOMBIA      ",0,203407903.93000001]
[800225340,"UNIVERSIDADES PÚBLICAS - UNIVERSIDAD MILITAR NUEVA GRANADA",{"$f":"SUMIF(G:J,Tabla3[[#This Row],[NIT]],I:I)","v":0},{"$f":"SUMIF(G:J,Tabla3[[#This Row],[NIT]],J:J)","v":0},null,null,"830040256","HOSPITAL MILITAR CENTRAL      ",0,1797787962.21]
[800230729,"COMANDO GENERAL",{"$f":"SUMIF(G:J,Tabla3[[#This Row],[NIT]],I:I)","v":0},{"$f":"SUMIF(G:J,Tabla3[[#This Row],[NIT]],J:J)","v":0},null,null,"830053043","SUPERINTENDENCIA DE ECONOMIA SOLIDARIA      ",0,114605695.55]
[800237214,"CORPORACIÓN NACIONAL PARA LA RECONSTRUCCIÓN DE LA CUENCA DEL RIO PÁEZ Y ZONAS ALEDAÑAS NASA KI WE",{"$f":"SUMIF(G:J,Tabla3[[#This Row],[NIT]],I:I)","v":0},{"$f":"SUMIF(G:J,Tabla3[[#This Row],[NIT]],J:J)","v":0},null,null,"830065741","AUDITORIA GENERAL DE LA NACION      ",0,50639486.280000001]
[800248004,"INSTITUTO TÉCNICO NACIONAL DE COMERCIO \"SIMÓN RODRÍGUEZ\" DE CALI",{"$f":"SUMIF(G:J,Tabla3[[#This Row],[NIT]],I:I)","v":0},{"$f":"SUMIF(G:J,Tabla3[[#This Row],[NIT]],J:J)","v":0},null,null,"830114475","MINISTERIO DEL INTERIOR      ",237022946,9420558799.0900002]
[800250881,"SUPER DE SERVICIOS PÚBLICOS DOMICILIARIO",{"$f":"SUMIF(G:J,Tabla3[[#This Row],[NIT]],I:I)","v":8167352420.5},{"$f":"SUMIF(G:J,Tabla3[[#This Row],[NIT]],J:J)","v":64112487.670000002},null,null,"830115226","MINISTERIO DEL TRABAJO      ",0,3475996952.8299999]
[800250984,"SUPERINTENDENCIA DE SERVICIOS PÚBLICOS DOMICILIARIOS",{"$f":"SUMIF(G:J,Tabla3[[#This Row],[NIT]],I:I)","v":0},{"$f":"SUMIF(G:J,Tabla3[[#This Row],[NIT]],J:J)","v":0},null,null,"830115297","MINISTERIO DE COMERCIO INDUSTRIA Y TURISMO      ",0,2056662069.52]
[800252037,"CORPORACIÓN AUTÓNOMA REGIONAL DE CHIVOR (CORPOCHIVOR)",{"$f":"SUMIF(G:J,Tabla3[[#This Row],[NIT]],I:I)","v":0},{"$f":"SUMIF(G:J,Tabla3[[#This Row],[NIT]],J:J)","v":0},null,null,"830115395","MINISTERIO DE AMBIENTE Y DESARROLLO SOSTENIBLE    ",397097077.24000001,7347111662.04]
[800252683,"FONDO DE BIENESTAR SOCIAL DE LA CONTRALORÍA GENERAL DE LA REPÚBLICA",{"$f":"SUMIF(G:J,Tabla3[[#This Row],[NIT]],I:I)","v":0},{"$f":"SUMIF(G:J,Tabla3[[#This Row],[NIT]],J:J)","v":43045572.770000003},null,null,"830125996","AGENCIA NACIONAL DE INFRAESTRUCTURA      ",0,26492041131.040001]
[800252843,"CORPORACIÓN AUTÓNOMA REGIONAL DE BOYACÁ (CORPOBOYACÁ)",{"$f":"SUMIF(G:J,Tabla3[[#This Row],[NIT]],I:I)","v":150854083},{"$f":"SUMIF(G:J,Tabla3[[#This Row],[NIT]],J:J)","v":1170996348.9200001},null,null,"830127607","AGENCIA NACIONAL DE HIDROCARBUROS ANH      ",2292520329.8699999,6278784683.21]
[800252844,"CORPORACIÓN PARA EL DESARROLLO SOSTENIBLE DEL SUR DE LA AMAZONIA (CORPOAMAZONIA)",{"$f":"SUMIF(G:J,Tabla3[[#This Row],[NIT]],I:I)","v":31499474},{"$f":"SUMIF(G:J,Tabla3[[#This Row],[NIT]],J:J)","v":1251919556.25},null,null,"832000283","CORPORACION AUTONOMA REGIONAL DE LA ORINOQUIA CORP",0,143460243.56999999]
[800254453,"CORPORACIÓN AUTÓNOMA REGIONAL DEL CANAL DEL DIQUE (CARDIQUE)",{"$f":"SUMIF(G:J,Tabla3[[#This Row],[NIT]],I:I)","v":0},{"$f":"SUMIF(G:J,Tabla3[[#This Row],[NIT]],J:J)","v":3223067531.1700001},null,null,"838000009","CORP PARA DES SOSTENIB DEL NOR/ORI AMAZO      ",0,227508865.11000001]
[800255580,"CORPORACIÓN AUTÓNOMA REGIONAL DEL ALTO MAGDALENA (CAM)",{"$f":"SUMIF(G:J,Tabla3[[#This Row],[NIT]],I:I)","v":0},{"$f":"SUMIF(G:J,Tabla3[[#This Row],[NIT]],J:J)","v":409764081.31999999},null,null,"860015971","INSTITUTO NACIONAL PARA CIEGOS      ",0,9227602.3200000003]
[802000339,"CORPORACIÓN AUTÓNOMA REGIONAL DEL ATLÁNTICO (CRA)",{"$f":"SUMIF(G:J,Tabla3[[#This Row],[NIT]],I:I)","v":0},{"$f":"SUMIF(G:J,Tabla3[[#This Row],[NIT]],J:J)","v":0},null,null,"860016951","CLUB MILITAR      ",0,220570490.21000001]
[804000292,"CORPORACIÓN AUTÓNOMA REGIONAL DE SANTANDER (CAS)",{"$f":"SUMIF(G:J,Tabla3[[#This Row],[NIT]],I:I)","v":0},{"$f":"SUMIF(G:J,Tabla3[[#This Row],[NIT]],J:J)","v":2046808406.4400001},null,null,"860020227","FONDO ROTATORIO DE LA  POLICIA NACIONAL      ",0,169706420.46000001]
[806000327,"CORPORACIÓN AUTÓNOMA REGIONAL DEL SUR DE BOLÍVAR (CSB)",{"$f":"SUMIF(G:J,Tabla3[[#This Row],[NIT]],I:I)","v":0},{"$f":"SUMIF(G:J,Tabla3[[#This Row],[NIT]],J:J)","v":0},null,null,"860041247","INSTITUTO DE CASAS FISCALES DEL EJERCITO      ",0,42359773.850000001]
[811000231,"CORPORACIÓN AUTÓNOMA REGIONAL DEL CENTRO DE ANTIOQUIA (CORANTIOQUIA)",{"$f":"SUMIF(G:J,Tabla3[[#This Row],[NIT]],I:I)","v":0},{"$f":"SUMIF(G:J,Tabla3[[#This Row],[NIT]],J:J)","v":8720701592.0599995},null,null,"860062187","SUPERINTENDENCIA NACIONAL DE SALUD      ",1132585912.1400001,10473657380.92]
[817002466,"UNIVERSIDADES PÚBLICAS - UNIVERSIDAD AUTÓNOMA INDÍGENA INTERCULTURAL UAIIN CRIC",{"$f":"SUMIF(G:J,Tabla3[[#This Row],[NIT]],I:I)","v":0},{"$f":"SUMIF(G:J,Tabla3[[#This Row],[NIT]],J:J)","v":0},null,null,"860511071","FONDO ROTATORIO DEL MINISTERIO DE RELACIONES EXTER",0,3990440764.9099998]
[822000091,"CORPORACIÓN PARA EL DESARROLLO SOSTENIBLE DEL ÁREA DE MANEJO ESPECIAL LA MACARENA (CORMACARENA)",{"$f":"SUMIF(G:J,Tabla3[[#This Row],[NIT]],I:I)","v":0},{"$f":"SUMIF(G:J,Tabla3[[#This Row],[NIT]],J:J)","v":0},null,null,"890000447","CORPORACION AUTONOMA REGIONAL DEL QUINDIO      ",0,418745477.08999997]
[823000050,"CORPORACIÓN AUTÓNOMA REGIONAL DE SUCRE (CARSUCRE)",{"$f":"SUMIF(G:J,Tabla3[[#This Row],[NIT]],I:I)","v":0},{"$f":"SUMIF(G:J,Tabla3[[#This Row],[NIT]],J:J)","v":0},null,null,"890026982","FONDO NACIONAL DE VIVIENDA FONDOS ESPECI      ",0,969600283.52999997]
[823000077,"CORPORACIÓN  PARA EL DESARROLLO SOSTENIBLE DE LA MOJANA Y EL SAN JORGE (CORPOMOJANA)",{"$f":"SUMIF(G:J,Tabla3[[#This Row],[NIT]],I:I)","v":0},{"$f":"SUMIF(G:J,Tabla3[[#This Row],[NIT]],J:J)","v":47396347.490000002},null,null,"890505253","CORPORACION AUTONOMA REGIONAL DE LA FRONTERA NOROR",0,4193679218.8400002]
[827000031,"CORPORACIÓN PARA EL DESARROLLO SOSTENIBLE DEL ARCHIPIÉLAGO DE SAN ANDRES, PROVIDENCIA Y SANTA CATALINA (CORALINA)",{"$f":"SUMIF(G:J,Tabla3[[#This Row],[NIT]],I:I)","v":0},{"$f":"SUMIF(G:J,Tabla3[[#This Row],[NIT]],J:J)","v":0},null,null,"890704536","CORPORACION AUTONOMA REGIONAL DEL TOLIMA      ",0,7724631688.0500002]
[830000167,"INSTITUTO NACIONAL DE VIGILANCIA DE MEDICAMENTOS Y ALIMENTOS - INVIMA",{"$f":"SUMIF(G:J,Tabla3[[#This Row],[NIT]],I:I)","v":45033934},{"$f":"SUMIF(G:J,Tabla3[[#This Row],[NIT]],J:J)","v":4070698552.1999998},null,null,"890803005","CORPORACION AUTONOMA REGIONAL DE CALDAS CORPOCALDA",0,467608279.47000003]
[830000212,"COMISIÓN DE REGULACIÓN DE AGUA POTABLE Y SANEAMIENTO BÁSICO CRA",{"$f":"SUMIF(G:J,Tabla3[[#This Row],[NIT]],I:I)","v":748437196.87},{"$f":"SUMIF(G:J,Tabla3[[#This Row],[NIT]],J:J)","v":435695172.13},null,null,"890907748","CORPORACION PARA EL DESARROLLO SOSTENIBLE DEL URAB",0,1494354993.6800001]
[830000282,"UNIDAD DE PLANEACION MINERO ENERGÉTICA - UPME",{"$f":"SUMIF(G:J,Tabla3[[#This Row],[NIT]],I:I)","v":0},{"$f":"SUMIF(G:J,Tabla3[[#This Row],[NIT]],J:J)","v":187642351.63},null,null,"890999057","SUPERINTENDENCIA FINANCIERA DE COLOMBIA      ",0,118686620.40000001]
[830000602,"INSTITUTO DE HIDROLOGÍA, METEOROLOGÍA Y ESTUDIOS AMBIENTALES- IDEAM",{"$f":"SUMIF(G:J,Tabla3[[#This Row],[NIT]],I:I)","v":0},{"$f":"SUMIF(G:J,Tabla3[[#This Row],[NIT]],J:J)","v":266543692.47},null,null,"891000627","CORPORACION AUTONOMA REGIONAL DE LOS VALLES DEL SI",0,1962569822.8800001]
[830002593,"UNIDAD ADMINISTRATIVA ESPECIAL COMISIÓN DE REGULACIÓN DE COMUNICACIONES",{"$f":"SUMIF(G:J,Tabla3[[#This Row],[NIT]],I:I)","v":0},{"$f":"SUMIF(G:J,Tabla3[[#This Row],[NIT]],J:J)","v":13905044.02},null,null,"891410354","CORP AUTONOMA REGIONAL DE RISARALDA      ",0,677599078.64999998]
[830016624,"PARQUES NACIONALES NATURALES DE COLOMBIA",{"$f":"SUMIF(G:J,Tabla3[[#This Row],[NIT]],I:I)","v":0},{"$f":"SUMIF(G:J,Tabla3[[#This Row],[NIT]],J:J)","v":203407903.93000001},null,null,"891501885","CORPORACION AUTONOMA REGIONAL DEL CAUCA C. R. C.  ",0,589582421.97000003]
[830025267,"FONDO NACIONAL AMBIENTAL - GESTIÓN GENERAL",{"$f":"SUMIF(G:J,Tabla3[[#This Row],[NIT]],I:I)","v":0},{"$f":"SUMIF(G:J,Tabla3[[#This Row],[NIT]],J:J)","v":0},null,null,"892301483","CORPORACION AUTONOMA REGIONAL DEL CESAR      ",0,838533994.47000003]
[830025406,"UNIDAD ADMINISTRATIVA ESPECIAL CONTADURÍA GENERAL DE LA NACIÓN",{"$f":"SUMIF(G:J,Tabla3[[#This Row],[NIT]],I:I)","v":0},{"$f":"SUMIF(G:J,Tabla3[[#This Row],[NIT]],J:J)","v":0},null,null,"899999003","MINISTERIO DE DEFENSA NACIONAL      ",157497808068.88,199335049105.89001]
[830027904,"DIRECCIÓN GENERAL MARÍTIMA (DIMAR)",{"$f":"SUMIF(G:J,Tabla3[[#This Row],[NIT]],I:I)","v":0},{"$f":"SUMIF(G:J,Tabla3[[#This Row],[NIT]],J:J)","v":0},null,null,"899999007","SUPERINTENDENCIA DE NOTARIADO Y REGISTRO      ",3542647196.4200001,10383558905.040001]
[830034348,"MINISTERIO DE CULTURA - GESTIÓN GENERAL",{"$f":"SUMIF(G:J,Tabla3[[#This Row],[NIT]],I:I)","v":0},{"$f":"SUMIF(G:J,Tabla3[[#This Row],[NIT]],J:J)","v":0},null,null,"899999011","DEPARTAMENTO NACIONAL DE PLANEACIÓN      ",458997921,16508873038.440001]
[830040256,"HOSPITAL MILITAR",{"$f":"SUMIF(G:J,Tabla3[[#This Row],[NIT]],I:I)","v":0},{"$f":"SUMIF(G:J,Tabla3[[#This Row],[NIT]],J:J)","v":1797787962.21},null,null,"899999022","MINISTERIO DE MINAS Y ENERGIA      ",0,13738819679.17]
[830041314,"POLICÍA NACIONAL - SALUD",{"$f":"SUMIF(G:J,Tabla3[[#This Row],[NIT]],I:I)","v":0},{"$f":"SUMIF(G:J,Tabla3[[#This Row],[NIT]],J:J)","v":0},null,null,"899999028","MINISTERIO DE AGRICULTURA Y DESARROLLO RURAL      ",0,4114455900.8200002]
[830053043,"SUPERINTENDENCIA DE LA ECONOMÍA SOLIDARIA",{"$f":"SUMIF(G:J,Tabla3[[#This Row],[NIT]],I:I)","v":0},{"$f":"SUMIF(G:J,Tabla3[[#This Row],[NIT]],J:J)","v":114605695.55},null,null,"899999042","MINISTERIO DE RELACIONES EXTERIORES      ",783477154,176281485.69999999]
[830065741,"AUDITORÍA GENERAL DE LA REPÚBLICA - GESTIÓN GENERAL",{"$f":"SUMIF(G:J,Tabla3[[#This Row],[NIT]],I:I)","v":0},{"$f":"SUMIF(G:J,Tabla3[[#This Row],[NIT]],J:J)","v":50639486.280000001},null,null,"899999048","INSTITUTO DE PLANIFICACION Y PROMOCION DE SOLUCION",0,1854135204.25]
[830067892,"INSTITUTO COLOMBIANO DE ANTROPOLOGÍA E HISTORIA",{"$f":"SUMIF(G:J,Tabla3[[#This Row],[NIT]],I:I)","v":0},{"$f":"SUMIF(G:J,Tabla3[[#This Row],[NIT]],J:J)","v":0},null,null,"899999053","MINISTERIO DE TECNOLOGÍAS DE LA INFORMACIÓN Y LAS ",0,8498845114.3199997]
[830068074,"UNIDAD DE INFORMACIÓN Y ANÁLISIS FINANCIERO",{"$f":"SUMIF(G:J,Tabla3[[#This Row],[NIT]],I:I)","v":0},{"$f":"SUMIF(G:J,Tabla3[[#This Row],[NIT]],J:J)","v":0},null,null,"899999054","ESCUELA SUPERIOR DE ADMINISTRACION PUBLICA      ",0,126575959.15000001]
[830079479,"COMPUTADORES PARA EDUCAR CPE",{"$f":"SUMIF(G:J,Tabla3[[#This Row],[NIT]],I:I)","v":0},{"$f":"SUMIF(G:J,Tabla3[[#This Row],[NIT]],J:J)","v":0},null,null,"899999055","MINISTERIO DE TRANSPORTE      ",0,2507307860.8299999]
[830085129,"FONDO SOCIAL DE VIVIENDA DE LA REGISTRADURÍA NACIONAL DEL ESTADO CIVIL",{"$f":"SUMIF(G:J,Tabla3[[#This Row],[NIT]],I:I)","v":0},{"$f":"SUMIF(G:J,Tabla3[[#This Row],[NIT]],J:J)","v":0},null,null,"899999059","UNIDAD ADMINISTRATIVA ESPECIAL DE AERONAUTICA CIVI",0,2351568040.5700002]
[830114475,"MINISTERIO DEL INTERIOR - GESTIÓN GENERAL",{"$f":"SUMIF(G:J,Tabla3[[#This Row],[NIT]],I:I)","v":237022946},{"$f":"SUMIF(G:J,Tabla3[[#This Row],[NIT]],J:J)","v":9420558799.0900002},null,null,"899999059","UNIDAD ADMINISTRATIVA ESPECIAL DE AERONAUTICA CIVI",0,3884888964.6900001]
[830114475,"DIRECCIÓN DE LA AUTORIDAD NACIONAL DE CONSULTA PREVIA",{"$f":"SUMIF(G:J,Tabla3[[#This Row],[NIT]],I:I)","v":237022946},{"$f":"SUMIF(G:J,Tabla3[[#This Row],[NIT]],J:J)","v":9420558799.0900002},null,null,"899999067","CONTRALORIA GENERAL DE LA REPUBLICA      ",0,2752942057.0500002]
[830115226,"MINISTERIO DEL TRABAJO - GESTIÓN GENERAL",{"$f":"SUMIF(G:J,Tabla3[[#This Row],[NIT]],I:I)","v":0},{"$f":"SUMIF(G:J,Tabla3[[#This Row],[NIT]],J:J)","v":3475996952.8299999},null,null,"899999069","INSTITUTO COLOMBIANO AGROPECUARIO ICA      ",368469108,95130.91]
[830115297,"DIRECCIÓN GENERAL DE COMERCIO EXTERIOR",{"$f":"SUMIF(G:J,Tabla3[[#This Row],[NIT]],I:I)","v":0},{"$f":"SUMIF(G:J,Tabla3[[#This Row],[NIT]],J:J)","v":2056662069.52},null,null,"899999073","CAJA DE SUELDOS DE RETIRO POLICIA NACIONAL      ",0,20054645461.439999]
[830115297,"MINISTERIO DE COMERCIO INDUSTRIA TURISMO - GESTIÓN GENERAL",{"$f":"SUMIF(G:J,Tabla3[[#This Row],[NIT]],I:I)","v":0},{"$f":"SUMIF(G:J,Tabla3[[#This Row],[NIT]],J:J)","v":2056662069.52},null,null,"899999083","DEPARTAMENTO ADMINISTRATIVO DE LA PRESIDENCIA DE L",196201561.08000001,1003670874.14]
[830115395,"MINISTERIO DE AMBIENTE Y DESARROLLO SOSTENIBLE - GESTIÓN GENERAL",{"$f":"SUMIF(G:J,Tabla3[[#This Row],[NIT]],I:I)","v":397097077.24000001},{"$f":"SUMIF(G:J,Tabla3[[#This Row],[NIT]],J:J)","v":7347111662.04},null,null,"899999086","SUPERINTENDENCIA DE SOCIEDADES      ",0,823931659.25]
[830121208,"FONDO NACIONAL DE VIVIENDA - FONVIVIENDA",{"$f":"SUMIF(G:J,Tabla3[[#This Row],[NIT]],I:I)","v":0},{"$f":"SUMIF(G:J,Tabla3[[#This Row],[NIT]],J:J)","v":0},null,null,"899999090","MINISTERIO DE HACIENDA Y CREDITO PUBLICO      ",0,157824652.77000001]
[830125996,"AGENCIA NACIONAL DE INFRAESTRUCTURA",{"$f":"SUMIF(G:J,Tabla3[[#This Row],[NIT]],I:I)","v":0},{"$f":"SUMIF(G:J,Tabla3[[#This Row],[NIT]],J:J)","v":26492041131.040001},null,null,"899999098","CAMARA DE REPRESENTANTES      ",55358723,60027154.609999999]
[830127607,"AGENCIA NACIONAL DE HIDROCARBUROS - ANH",{"$f":"SUMIF(G:J,Tabla3[[#This Row],[NIT]],I:I)","v":2292520329.8699999},{"$f":"SUMIF(G:J,Tabla3[[#This Row],[NIT]],J:J)","v":6278784683.21},null,null,"899999103","SENADO DE LA REPUBLICA      ",397726941.93000001,3504390822.1500001]
[832000171,"CORPORACIÓN AUTÓNOMA REGIONAL DEL GUAVIO (CORPOGUAVIO)",{"$f":"SUMIF(G:J,Tabla3[[#This Row],[NIT]],I:I)","v":0},{"$f":"SUMIF(G:J,Tabla3[[#This Row],[NIT]],J:J)","v":0},null,null,"899999118","CAJA DE RETIRO DE LAS FUERZAS MILITARES      ",0,13551170860.24]
[832000283,"CORPORACIÓN AUTÓNOMA REGIONAL DE LA ORINOQUIA (CORPORINOQUIA)",{"$f":"SUMIF(G:J,Tabla3[[#This Row],[NIT]],I:I)","v":0},{"$f":"SUMIF(G:J,Tabla3[[#This Row],[NIT]],J:J)","v":143460243.56999999},null,null,"899999119","PROCURADURIA GENERAL DE LA NACION      ",632263030,18773875932.389999]
[835000300,"UNIVERSIDADES PÚBLICAS - UNIVERSIDAD DEL PACIFICO",{"$f":"SUMIF(G:J,Tabla3[[#This Row],[NIT]],I:I)","v":0},{"$f":"SUMIF(G:J,Tabla3[[#This Row],[NIT]],J:J)","v":0},null,null,"899999162","AGENCIA LOGISTICA DE LAS FUERZAS MILITARES      ",428939357.63999999,161198424.62]
[838000009,"CORPORACIÓN  PARA EL DESARROLLO SOSTENIBLE DEL NORTE Y ORIENTE DE LA AMAZONIA (CDA)",{"$f":"SUMIF(G:J,Tabla3[[#This Row],[NIT]],I:I)","v":0},{"$f":"SUMIF(G:J,Tabla3[[#This Row],[NIT]],J:J)","v":227508865.11000001},null,null,"899999294","SERVICIO GEOLOGICO COLOMBIANO - SGC      ",0,264582107.08000001]
[844002071,"UNIVERSIDADES PÚBLICAS - UNIVERSIDAD INTERNACIONAL DEL TROPICO AMERICANO",{"$f":"SUMIF(G:J,Tabla3[[#This Row],[NIT]],I:I)","v":0},{"$f":"SUMIF(G:J,Tabla3[[#This Row],[NIT]],J:J)","v":0},null,null,"899999296","MINISTERIO DE CIENCIA, TECNOLOGIA E INNOVACION    ",0,176531515.00999999]
[860015971,"INSTITUTO NACIONAL PARA CIEGOS (INCI)",{"$f":"SUMIF(G:J,Tabla3[[#This Row],[NIT]],I:I)","v":0},{"$f":"SUMIF(G:J,Tabla3[[#This Row],[NIT]],J:J)","v":9227602.3200000003},null,null,"899999306","MINISTERIO DEL DEPORTE      ",34064856,505280980.10000002]
[860016627,"INSTITUTO NACIONAL PARA SORDOS (INSOR)",{"$f":"SUMIF(G:J,Tabla3[[#This Row],[NIT]],I:I)","v":0},{"$f":"SUMIF(G:J,Tabla3[[#This Row],[NIT]],J:J)","v":0},null,null,"899999403","INSTITUTO NACIONAL DE SALUD      ",0,123074025.91]
[860016951,"CLUB MILITAR DE OFICIALES",{"$f":"SUMIF(G:J,Tabla3[[#This Row],[NIT]],I:I)","v":0},{"$f":"SUMIF(G:J,Tabla3[[#This Row],[NIT]],J:J)","v":220570490.21000001},null,null,"899999717","DEFENSA CIVIL COLOMBIANA      ",0,429435490.95999998]
[860020227,"FONDO ROTATORIO DE LA POLICÍA - GESTIÓN GENERAL",{"$f":"SUMIF(G:J,Tabla3[[#This Row],[NIT]],I:I)","v":0},{"$f":"SUMIF(G:J,Tabla3[[#This Row],[NIT]],J:J)","v":169706420.46000001},null,null,"899999734","FONDO DE PREVISION SOCIAL DEL CONGRESO DE LA REPUB",935657852,1176842765.9100001]
[860041247,"INSTITUTO CASAS FISCALES DEL EJÉRCITO",{"$f":"SUMIF(G:J,Tabla3[[#This Row],[NIT]],I:I)","v":0},{"$f":"SUMIF(G:J,Tabla3[[#This Row],[NIT]],J:J)","v":42359773.850000001},null,null,"900003409","COMISION NACIONAL DEL SERVICIO CIVIL      ",75829826.540000007,414243181.29000002]
[860062187,"SUPERINTENDENCIA NACIONAL DE SALUD",{"$f":"SUMIF(G:J,Tabla3[[#This Row],[NIT]],I:I)","v":1132585912.1400001},{"$f":"SUMIF(G:J,Tabla3[[#This Row],[NIT]],J:J)","v":10473657380.92},null,null,"900034993","COMISION DE REGULACION DE ENERGIA Y GAS      ",2873341054,6377111233.7299995]
[860402193,"INSTITUTO NACIONAL DE FORMACIÓN TÉCNICA PROFESIONAL DE SAN JUAN DEL CESAR",{"$f":"SUMIF(G:J,Tabla3[[#This Row],[NIT]],I:I)","v":0},{"$f":"SUMIF(G:J,Tabla3[[#This Row],[NIT]],J:J)","v":0},null,null,"900039533","DEPARTAMENTO ADMINISTRATIVO PARA LA PROSPERIDAD SO",0,5180238029.4300003]
[860503600,"SUPERINTENDENCIA DE SUBSIDIO FAMILIAR",{"$f":"SUMIF(G:J,Tabla3[[#This Row],[NIT]],I:I)","v":0},{"$f":"SUMIF(G:J,Tabla3[[#This Row],[NIT]],J:J)","v":0},null,null,"900180739","UNIDAD ADMINISTRATIVA ESPECIAL JUNTA CENTRAL DE CO",82293935,370642185.02999997]
[860511071,"FONDO ROTATORIO DEL MINISTERIO DE RELACIONES EXTERIORES",{"$f":"SUMIF(G:J,Tabla3[[#This Row],[NIT]],I:I)","v":0},{"$f":"SUMIF(G:J,Tabla3[[#This Row],[NIT]],J:J)","v":3990440764.9099998},null,null,"900334265","AGENCIA NACIONAL DEL ESPECTRO      ",0,82151805.359999999]
[860512780,"UNIVERSIDADES PÚBLICAS - UNIVERSIDAD NACIONAL ABIERTA Y A DISTANCIA UNAD",{"$f":"SUMIF(G:J,Tabla3[[#This Row],[NIT]],I:I)","v":0},{"$f":"SUMIF(G:J,Tabla3[[#This Row],[NIT]],J:J)","v":0},null,null,"900373913","UNIDAD ADMINISTRATIVA ESPECIAL DE GESTION PENSIONA",0,244899817.63999999]
[860523694,"ESCUELA TECNOLÓGICA INSTITUTO TÉCNICO CENTRAL",{"$f":"SUMIF(G:J,Tabla3[[#This Row],[NIT]],I:I)","v":0},{"$f":"SUMIF(G:J,Tabla3[[#This Row],[NIT]],J:J)","v":0},null,null,"900384997","UNIDAD ADMINISTRATIVA ESPECIAL DE LA JUSTICIA PENA",0,111002384.18000001]
[890000432,"UNIVERSIDADES PÚBLICAS - UNIVERSIDAD DEL QUINDIO",{"$f":"SUMIF(G:J,Tabla3[[#This Row],[NIT]],I:I)","v":0},{"$f":"SUMIF(G:J,Tabla3[[#This Row],[NIT]],J:J)","v":0},null,null,"900450205","FONDO ADAPTACION      ",0,1994059348.3199999]
[890000447,"CORPORACIÓN AUTÓNOMA REGIONAL DEL QUINDÍO (CRQ)",{"$f":"SUMIF(G:J,Tabla3[[#This Row],[NIT]],I:I)","v":0},{"$f":"SUMIF(G:J,Tabla3[[#This Row],[NIT]],J:J)","v":418745477.08999997},null,null,"900457461","MINISTERIO DE JUSTICIA Y DEL DERECHO      ",445513490,837533465.64999998]
[890026982,"FONVIVIENDA",{"$f":"SUMIF(G:J,Tabla3[[#This Row],[NIT]],I:I)","v":0},{"$f":"SUMIF(G:J,Tabla3[[#This Row],[NIT]],J:J)","v":969600283.52999997},null,null,"900463725","MINISTERIO DE VIVIENDA CIUDAD Y TERRITORIO      ",0,579552384.86000001]
[890102257,"UNIVERSIDADES PÚBLICAS - UNIVERSIDAD DEL ATLANTICO",{"$f":"SUMIF(G:J,Tabla3[[#This Row],[NIT]],I:I)","v":0},{"$f":"SUMIF(G:J,Tabla3[[#This Row],[NIT]],J:J)","v":0},null,null,"900467239","UAE AUTORIDAD NACIONAL DE LICENCIAS AMBIENTALES - ",0,1644154306.55]
[890201213,"UNIVERSIDADES PÚBLICAS - UNIVERSIDAD INDUSTRIAL DE SANTANDER",{"$f":"SUMIF(G:J,Tabla3[[#This Row],[NIT]],I:I)","v":0},{"$f":"SUMIF(G:J,Tabla3[[#This Row],[NIT]],J:J)","v":0},null,null,"900474727","MINISTERIO DE SALUD Y PROTECCION SOCIAL      ",0,25578820109.119999]
[890201573,"CORPORACIÓN AUTÓNOMA REGIONAL PARA LA DEFENSA DE LA MESETA DE BUCARAMANGA (CDMB)",{"$f":"SUMIF(G:J,Tabla3[[#This Row],[NIT]],I:I)","v":0},{"$f":"SUMIF(G:J,Tabla3[[#This Row],[NIT]],J:J)","v":0},null,null,"900475460","DIRECCION NACIONAL DE INTELIGENCIA      ",0,44778910.560000002]
[890399010,"UNIVERSIDADES PÚBLICAS - UNIVERSIDAD DEL VALLE",{"$f":"SUMIF(G:J,Tabla3[[#This Row],[NIT]],I:I)","v":0},{"$f":"SUMIF(G:J,Tabla3[[#This Row],[NIT]],J:J)","v":0},null,null,"900475780","UNIDAD NACIONAL DE PROTECCION - UNP      ",560640653,2822164547.6300001]
[890480123,"UNIVERSIDADES PÚBLICAS - UNIVERSIDAD DE CARTAGENA",{"$f":"SUMIF(G:J,Tabla3[[#This Row],[NIT]],I:I)","v":0},{"$f":"SUMIF(G:J,Tabla3[[#This Row],[NIT]],J:J)","v":0},null,null,"900477169","AGENCIA PARA LA REINCORPORACION Y LA NORMALIZACION",163599527,57848142.990000002]
[890500622,"UNIVERSIDADES PÚBLICAS - UNIVERSIDAD FRANCISCO DE PAULA SANTANDER",{"$f":"SUMIF(G:J,Tabla3[[#This Row],[NIT]],I:I)","v":0},{"$f":"SUMIF(G:J,Tabla3[[#This Row],[NIT]],J:J)","v":0},null,null,"900477235","UNIDAD ADMINISTRATIVA ESPECIAL MIGRACION COLOMBIA ",0,728532451.08000004]
[890501510,"UNIVERSIDADES PÚBLICAS - UNIVERSIDAD DE PAMPLONA",{"$f":"SUMIF(G:J,Tabla3[[#This Row],[NIT]],I:I)","v":0},{"$f":"SUMIF(G:J,Tabla3[[#This Row],[NIT]],J:J)","v":0},null,null,"900478966","UNIDAD NACIONAL PARA LA GESTION DEL RIESGO DE DESA",213087325.59999999,7491416397.5900002]
[890505253,"CORPORACIÓN AUTÓNOMA REGIONAL DE LA FRONTERA NORORIENTAL (CORPONOR)",{"$f":"SUMIF(G:J,Tabla3[[#This Row],[NIT]],I:I)","v":0},{"$f":"SUMIF(G:J,Tabla3[[#This Row],[NIT]],J:J)","v":4193679218.8400002},null,null,"900479669","UNIDAD ADMINISTRATIVA ESPECIAL AUTORIDAD NACIONAL ",0,22615332.289999999]
[890680062,"UNIVERSIDADES PÚBLICAS - UNIVERSIDAD DE CUNDINAMARCA",{"$f":"SUMIF(G:J,Tabla3[[#This Row],[NIT]],I:I)","v":0},{"$f":"SUMIF(G:J,Tabla3[[#This Row],[NIT]],J:J)","v":0},null,null,"900483991","AGENCIA NACIONAL INMOBILIARIA VIRGILIO BARCO VARGA",0,36873651.93]
[890700640,"UNIVERSIDADES PÚBLICAS - UNIVERSIDAD DEL TOLIMA",{"$f":"SUMIF(G:J,Tabla3[[#This Row],[NIT]],I:I)","v":0},{"$f":"SUMIF(G:J,Tabla3[[#This Row],[NIT]],J:J)","v":0},null,null,"900484852","AGENCIA PRESIDENCIAL DE COOPERACION INTERNACIONAL ",0,35445405.93]
[890704536,"CORPORACIÓN AUTÓNOMA REGIONAL DEL TOLIMA (CORTOLIMA)",{"$f":"SUMIF(G:J,Tabla3[[#This Row],[NIT]],I:I)","v":0},{"$f":"SUMIF(G:J,Tabla3[[#This Row],[NIT]],J:J)","v":7724631688.0500002},null,null,"900490473","UNIDAD ADMINISTRATIVA ESPECIAL DE ATENCION Y REPAR",0,566871082.67999995]
[890801063,"UNIVERSIDADES PÚBLICAS - UNIVERSIDAD DE CALDAS",{"$f":"SUMIF(G:J,Tabla3[[#This Row],[NIT]],I:I)","v":0},{"$f":"SUMIF(G:J,Tabla3[[#This Row],[NIT]],J:J)","v":0},null,null,"900492141","CENTRO DE MEMORIA HISTORICA      ",0,11923535.710000001]
[890803005,"CORPORACIÓN AUTÓNOMA REGIONAL DE CALDAS (CORPOCALDAS)",{"$f":"SUMIF(G:J,Tabla3[[#This Row],[NIT]],I:I)","v":0},{"$f":"SUMIF(G:J,Tabla3[[#This Row],[NIT]],J:J)","v":467608279.47000003},null,null,"900494393","U.A.E. INSTITUTO NACIONAL DE METROLOGIA - INM     ",0,6720633.8099999996]
[890907748,"CORPORACIÓN PARA EL DESARROLLO SOSTENIBLE DEL URABÁ (CORPOURABÁ)",{"$f":"SUMIF(G:J,Tabla3[[#This Row],[NIT]],I:I)","v":0},{"$f":"SUMIF(G:J,Tabla3[[#This Row],[NIT]],J:J)","v":1494354993.6800001},null,null,"900498879","UNIDAD ADMINISTRATIVA ESPECIAL DE GESTION DE RESTI",741560023,3012778603.1199999]
[890980040,"UNIVERSIDADES PÚBLICAS - UNIVERSIDAD DE ANTIOQUIA",{"$f":"SUMIF(G:J,Tabla3[[#This Row],[NIT]],I:I)","v":0},{"$f":"SUMIF(G:J,Tabla3[[#This Row],[NIT]],J:J)","v":0},null,null,"900507741","UNIDAD ADMINISTRATIVA ESPECIAL AGENCIA NACIONAL DE",0,74526838.5]
[890999057,"SUPERINTENDENCIA FINANCIERA DE COLOMBIA",{"$f":"SUMIF(G:J,Tabla3[[#This Row],[NIT]],I:I)","v":0},{"$f":"SUMIF(G:J,Tabla3[[#This Row],[NIT]],J:J)","v":118686620.40000001},null,null,"900514813","AGENCIA NACIONAL DE CONTRATACION PUBLICA - COLOMBI",0,739250874.74000001]
[891000627,"CORPORACIÓN AUTÓNOMA REGIONAL DE LOS VALLES DEL SINÚ Y SAN JORGE (CVS)",{"$f":"SUMIF(G:J,Tabla3[[#This Row],[NIT]],I:I)","v":0},{"$f":"SUMIF(G:J,Tabla3[[#This Row],[NIT]],J:J)","v":1962569822.8800001},null,null,"900523392","UNIDAD DE SERVICIOS PENITENCIARIOS Y CARCELARIOS  ",94559943.359999999,904076283.37]
[891080031,"UNIVERSIDADES PÚBLICAS - UNIVERSIDAD DE CORDOBA",{"$f":"SUMIF(G:J,Tabla3[[#This Row],[NIT]],I:I)","v":0},{"$f":"SUMIF(G:J,Tabla3[[#This Row],[NIT]],J:J)","v":0},null,null,"900528648","UNIDAD ADMINISTRATIVA ESPECIAL AGENCIA DEL INSPECT",0,90139707.379999995]
[891180084,"UNIVERSIDADES PÚBLICAS - UNIVERSIDAD SURCOLOMBIANA",{"$f":"SUMIF(G:J,Tabla3[[#This Row],[NIT]],I:I)","v":0},{"$f":"SUMIF(G:J,Tabla3[[#This Row],[NIT]],J:J)","v":0},null,null,"900678508","UNIDAD ADMINISTRATIVA ESPECIAL DEL SERVICIO PÚBLIC",0,3255633.26]
[891190346,"UNIVERSIDADES PÚBLICAS - UNIVERSIDAD DE LA AMAZONIA",{"$f":"SUMIF(G:J,Tabla3[[#This Row],[NIT]],I:I)","v":0},{"$f":"SUMIF(G:J,Tabla3[[#This Row],[NIT]],J:J)","v":0},null,null,"900852998","AGENCIA NACIONAL DE SEGURIDAD VIAL      ",0,108916790.04000001]
[891222322,"CORPORACIÓN AUTÓNOMA REGIONAL DE NARIÑO (CORPONARIÑO)",{"$f":"SUMIF(G:J,Tabla3[[#This Row],[NIT]],I:I)","v":0},{"$f":"SUMIF(G:J,Tabla3[[#This Row],[NIT]],J:J)","v":0},null,null,"900948953","AGENCIA NACIONAL DE TIERRAS - ANT      ",0,10977849443.870001]
[891410354,"CORPORACIÓN AUTÓNOMA REGIONAL DE RISARALDA (CARDER)",{"$f":"SUMIF(G:J,Tabla3[[#This Row],[NIT]],I:I)","v":0},{"$f":"SUMIF(G:J,Tabla3[[#This Row],[NIT]],J:J)","v":677599078.64999998},null,null,"900948958","AGENCIA DE DESARROLLO RURAL - ADR      ",0,802937284.94000006]
[891480035,"UNIVERSIDADES PÚBLICAS - UNIVERSIDAD TECNOLOGICA DE PEREIRA",{"$f":"SUMIF(G:J,Tabla3[[#This Row],[NIT]],I:I)","v":0},{"$f":"SUMIF(G:J,Tabla3[[#This Row],[NIT]],J:J)","v":0},null,null,"901006886","AGENCIA DE RENOVACION DEL TERRITORIO      ",0,139883815.66999999]
[891500319,"UNIVERSIDADES PÚBLICAS - UNIVERSIDAD DEL CAUCA",{"$f":"SUMIF(G:J,Tabla3[[#This Row],[NIT]],I:I)","v":0},{"$f":"SUMIF(G:J,Tabla3[[#This Row],[NIT]],J:J)","v":0},null,null,"901140004","JURISDICCION ESPECIAL PARA LA PAZ      ",0,520921053.19]
[891501885,"CORPORACIÓN AUTÓNOMA REGIONAL DEL CAUCA (CRC)",{"$f":"SUMIF(G:J,Tabla3[[#This Row],[NIT]],I:I)","v":0},{"$f":"SUMIF(G:J,Tabla3[[#This Row],[NIT]],J:J)","v":589582421.97000003},null,null,"901717412","CONSEJO NACIONAL ELECTORAL      ",0,1675744576.47]
[891680089,"UNIVERSIDADES PÚBLICAS - UNIVERSIDAD TECNOLOGICA DEL CHOCO DIEGO LUIS CORDOBA",{"$f":"SUMIF(G:J,Tabla3[[#This Row],[NIT]],I:I)","v":0},{"$f":"SUMIF(G:J,Tabla3[[#This Row],[NIT]],J:J)","v":0}]
[891780111,"UNIVERSIDADES PÚBLICAS - UNIVERSIDAD DEL MAGDALENA",{"$f":"SUMIF(G:J,Tabla3[[#This Row],[NIT]],I:I)","v":0},{"$f":"SUMIF(G:J,Tabla3[[#This Row],[NIT]],J:J)","v":0}]
[891800330,"UNIVERSIDADES PÚBLICAS - UNIVERSIDAD PEDAGOGICA Y TECNOLOGICA DE COLOMBIA",{"$f":"SUMIF(G:J,Tabla3[[#This Row],[NIT]],I:I)","v":0},{"$f":"SUMIF(G:J,Tabla3[[#This Row],[NIT]],J:J)","v":0}]
[892000757,"UNIVERSIDADES PÚBLICAS - UNIVERSIDAD DE LOS LLANOS",{"$f":"SUMIF(G:J,Tabla3[[#This Row],[NIT]],I:I)","v":0},{"$f":"SUMIF(G:J,Tabla3[[#This Row],[NIT]],J:J)","v":0}]
[892115029,"UNIVERSIDADES PÚBLICAS - UNIVERSIDAD DE LA GUAJIRA",{"$f":"SUMIF(G:J,Tabla3[[#This Row],[NIT]],I:I)","v":0},{"$f":"SUMIF(G:J,Tabla3[[#This Row],[NIT]],J:J)","v":0}]
[892115314,"CORPORACIÓN AUTÓNOMA REGIONAL DE LA  GUAJIRA (CORPOGUAJIRA)",{"$f":"SUMIF(G:J,Tabla3[[#This Row],[NIT]],I:I)","v":0},{"$f":"SUMIF(G:J,Tabla3[[#This Row],[NIT]],J:J)","v":0}]
[892200323,"UNIVERSIDADES PÚBLICAS - UNIVERSIDAD DE SUCRE",{"$f":"SUMIF(G:J,Tabla3[[#This Row],[NIT]],I:I)","v":0},{"$f":"SUMIF(G:J,Tabla3[[#This Row],[NIT]],J:J)","v":0}]
[892300285,"UNIVERSIDADES PÚBLICAS - UNIVERSIDAD POPULAR DEL CESAR",{"$f":"SUMIF(G:J,Tabla3[[#This Row],[NIT]],I:I)","v":0},{"$f":"SUMIF(G:J,Tabla3[[#This Row],[NIT]],J:J)","v":0}]
[892301483,"CORPORACIÓN AUTÓNOMA REGIONAL DEL CESAR (CORPOCESAR)",{"$f":"SUMIF(G:J,Tabla3[[#This Row],[NIT]],I:I)","v":0},{"$f":"SUMIF(G:J,Tabla3[[#This Row],[NIT]],J:J)","v":838533994.47000003}]
[892400461,"INSTITUTO NACIONAL DE FORMACIÓN TÉCNICA PROFESIONAL DE SAN ANDRES Y PROVIDENCIA",{"$f":"SUMIF(G:J,Tabla3[[#This Row],[NIT]],I:I)","v":0},{"$f":"SUMIF(G:J,Tabla3[[#This Row],[NIT]],J:J)","v":0}]
[899999001,"MINISTERIO DE EDUCACIÓN NACIONAL - GESTIÓN GENERAL",{"$f":"SUMIF(G:J,Tabla3[[#This Row],[NIT]],I:I)","v":0},{"$f":"SUMIF(G:J,Tabla3[[#This Row],[NIT]],J:J)","v":0}]
[899999003,"MINISTERIO DE DEFENSA NACIONAL - GESTIÓN GENERAL",{"$f":"SUMIF(G:J,Tabla3[[#This Row],[NIT]],I:I)","v":157497808068.88},{"$f":"SUMIF(G:J,Tabla3[[#This Row],[NIT]],J:J)","v":199335049105.89001}]
[899999004,"INSTITUTO GEOGRÁFICO AGUSTÍN CODAZZI - IGAC",{"$f":"SUMIF(G:J,Tabla3[[#This Row],[NIT]],I:I)","v":0},{"$f":"SUMIF(G:J,Tabla3[[#This Row],[NIT]],J:J)","v":0}]
[899999007,"SUPERINTENDENCIA DE NOTARIADO Y REGISTRO",{"$f":"SUMIF(G:J,Tabla3[[#This Row],[NIT]],I:I)","v":3542647196.4200001},{"$f":"SUMIF(G:J,Tabla3[[#This Row],[NIT]],J:J)","v":10383558905.040001}]
[899999011,"DEPARTAMENTO ADMINISTRATIVO NACIONAL DE PLANEACIÓN - GESTIÓN GENERAL",{"$f":"SUMIF(G:J,Tabla3[[#This Row],[NIT]],I:I)","v":458997921},{"$f":"SUMIF(G:J,Tabla3[[#This Row],[NIT]],J:J)","v":16508873038.440001}]
[899999020,"DEPARTAMENTO ADMINISTRATIVO DE LA FUNCIÓN PÚBLICA- GESTIÓN GENERAL",{"$f":"SUMIF(G:J,Tabla3[[#This Row],[NIT]],I:I)","v":0},{"$f":"SUMIF(G:J,Tabla3[[#This Row],[NIT]],J:J)","v":0}]
[899999022,"MINISTERIO DE MINAS Y ENERGÍA - GESTIÓN GENERAL",{"$f":"SUMIF(G:J,Tabla3[[#This Row],[NIT]],I:I)","v":0},{"$f":"SUMIF(G:J,Tabla3[[#This Row],[NIT]],J:J)","v":13738819679.17}]
[899999027,"DEPARTAMENTO ADMINISTRATIVO NACIONAL DE ESTADÍSTICA (DANE) - GESTIÓN GENERAL",{"$f":"SUMIF(G:J,Tabla3[[#This Row],[NIT]],I:I)","v":0},{"$f":"SUMIF(G:J,Tabla3[[#This Row],[NIT]],J:J)","v":0}]
[899999028,"MINISTERIO DE AGRICULTURA Y DESARROLLO RURAL - GESTIÓN GENERAL",{"$f":"SUMIF(G:J,Tabla3[[#This Row],[NIT]],I:I)","v":0},{"$f":"SUMIF(G:J,Tabla3[[#This Row],[NIT]],J:J)","v":4114455900.8200002}]
[899999034,"SERVICIO NACIONAL DE APRENDIZAJE (SENA)",{"$f":"SUMIF(G:J,Tabla3[[#This Row],[NIT]],I:I)","v":0},{"$f":"SUMIF(G:J,Tabla3[[#This Row],[NIT]],J:J)","v":0}]
[899999040,"REGISTRADURÍA NACIONAL DEL ESTADO CIVIL - GESTIÓN GENERAL",{"$f":"SUMIF(G:J,Tabla3[[#This Row],[NIT]],I:I)","v":0},{"$f":"SUMIF(G:J,Tabla3[[#This Row],[NIT]],J:J)","v":0}]
[899999042,"MINISTERIO DE RELACIONES EXTERIORES - GESTIÓN GENERAL",{"$f":"SUMIF(G:J,Tabla3[[#This Row],[NIT]],I:I)","v":783477154},{"$f":"SUMIF(G:J,Tabla3[[#This Row],[NIT]],J:J)","v":176281485.69999999}]
[899999048,"INSTITUTO DE PLANIFICACIÓN Y PROMOCIÓN DE SOLUCIONES  ENERGÉTICAS PARA LAS ZONAS NO INTERCONECTADAS - IPSE",{"$f":"SUMIF(G:J,Tabla3[[#This Row],[NIT]],I:I)","v":0},{"$f":"SUMIF(G:J,Tabla3[[#This Row],[NIT]],J:J)","v":1854135204.25}]
[899999050,"UNIDAD ADMINISTRATIVA ESPECIAL DE ORGANIZACIONES SOLIDARIAS",{"$f":"SUMIF(G:J,Tabla3[[#This Row],[NIT]],I:I)","v":0},{"$f":"SUMIF(G:J,Tabla3[[#This Row],[NIT]],J:J)","v":0}]
[899999053,"MINISTERIO DE TECNOLOGÍAS DE LA INFORMACIÓN Y LAS COMUNICACIONES - GESTIÓN GENERAL",{"$f":"SUMIF(G:J,Tabla3[[#This Row],[NIT]],I:I)","v":0},{"$f":"SUMIF(G:J,Tabla3[[#This Row],[NIT]],J:J)","v":8498845114.3199997}]
[899999054,"ESCUELA SUPERIOR DE ADMINISTRACIÓN PÚBLICA (ESAP)",{"$f":"SUMIF(G:J,Tabla3[[#This Row],[NIT]],I:I)","v":0},{"$f":"SUMIF(G:J,Tabla3[[#This Row],[NIT]],J:J)","v":126575959.15000001}]
[899999055,"COMISIÓN DE REGULACIÓN DE INFRAESTRUCTURA Y TRANSPORTE",{"$f":"SUMIF(G:J,Tabla3[[#This Row],[NIT]],I:I)","v":0},{"$f":"SUMIF(G:J,Tabla3[[#This Row],[NIT]],J:J)","v":2507307860.8299999}]
[899999059,"UNIDAD ADMINISTRATIVA ESPECIAL DE LA AERONÁUTICA CIVIL",{"$f":"SUMIF(G:J,Tabla3[[#This Row],[NIT]],I:I)","v":0},{"$f":"SUMIF(G:J,Tabla3[[#This Row],[NIT]],J:J)","v":6236457005.2600002}]
[899999063,"UNIVERSIDADES PÚBLICAS - UNIVERSIDAD NACIONAL DE COLOMBIA",{"$f":"SUMIF(G:J,Tabla3[[#This Row],[NIT]],I:I)","v":0},{"$f":"SUMIF(G:J,Tabla3[[#This Row],[NIT]],J:J)","v":0}]
[899999067,"CONTRALORÍA GENERAL DE LA REPÚBLICA - GESTIÓN GENERAL",{"$f":"SUMIF(G:J,Tabla3[[#This Row],[NIT]],I:I)","v":0},{"$f":"SUMIF(G:J,Tabla3[[#This Row],[NIT]],J:J)","v":2752942057.0500002}]
[899999069,"INSTITUTO COLOMBIANO AGROPECUARIO (ICA)",{"$f":"SUMIF(G:J,Tabla3[[#This Row],[NIT]],I:I)","v":368469108},{"$f":"SUMIF(G:J,Tabla3[[#This Row],[NIT]],J:J)","v":95130.91}]
[899999073,"CAJA DE SUELDOS DE RETIRO DE LA POLICÍA NACIONAL",{"$f":"SUMIF(G:J,Tabla3[[#This Row],[NIT]],I:I)","v":0},{"$f":"SUMIF(G:J,Tabla3[[#This Row],[NIT]],J:J)","v":20054645461.439999}]
[899999083,"PRESIDENCIA DE LA REPÚBLICA - GESTIÓN GENERAL",{"$f":"SUMIF(G:J,Tabla3[[#This Row],[NIT]],I:I)","v":196201561.08000001},{"$f":"SUMIF(G:J,Tabla3[[#This Row],[NIT]],J:J)","v":1003670874.14}]
[899999086,"SUPERINTENDENCIA DE SOCIEDADES",{"$f":"SUMIF(G:J,Tabla3[[#This Row],[NIT]],I:I)","v":0},{"$f":"SUMIF(G:J,Tabla3[[#This Row],[NIT]],J:J)","v":823931659.25}]
[899999090,"MINISTERIO DE HACIENDA Y CRÉDITO PÚBLICO - GESTIÓN GENERAL",{"$f":"SUMIF(G:J,Tabla3[[#This Row],[NIT]],I:I)","v":0},{"$f":"SUMIF(G:J,Tabla3[[#This Row],[NIT]],J:J)","v":157824652.77000001}]
[899999096,"INSTITUTO CARO Y CUERVO",{"$f":"SUMIF(G:J,Tabla3[[#This Row],[NIT]],I:I)","v":0},{"$f":"SUMIF(G:J,Tabla3[[#This Row],[NIT]],J:J)","v":0}]
[899999098,"CÁMARA DE REPRESENTANTES",{"$f":"SUMIF(G:J,Tabla3[[#This Row],[NIT]],I:I)","v":55358723},{"$f":"SUMIF(G:J,Tabla3[[#This Row],[NIT]],J:J)","v":60027154.609999999}]
[899999102,"FUERZA AÉREA",{"$f":"SUMIF(G:J,Tabla3[[#This Row],[NIT]],I:I)","v":0},{"$f":"SUMIF(G:J,Tabla3[[#This Row],[NIT]],J:J)","v":0}]
[899999103,"SENADO DE LA REPÚBLICA",{"$f":"SUMIF(G:J,Tabla3[[#This Row],[NIT]],I:I)","v":397726941.93000001},{"$f":"SUMIF(G:J,Tabla3[[#This Row],[NIT]],J:J)","v":3504390822.1500001}]
[899999118,"CAJA DE RETIRO DE LAS FUERZAS MILITARES",{"$f":"SUMIF(G:J,Tabla3[[#This Row],[NIT]],I:I)","v":0},{"$f":"SUMIF(G:J,Tabla3[[#This Row],[NIT]],J:J)","v":13551170860.24}]
[899999119,"PROCURADURÍA GENERAL DE LA NACIÓN - GESTIÓN GENERAL",{"$f":"SUMIF(G:J,Tabla3[[#This Row],[NIT]],I:I)","v":632263030},{"$f":"SUMIF(G:J,Tabla3[[#This Row],[NIT]],J:J)","v":18773875932.389999}]
[899999124,"UNIVERSIDADES PÚBLICAS - UNIVERSIDAD PEDAGOGICA NACIONAL",{"$f":"SUMIF(G:J,Tabla3[[#This Row],[NIT]],I:I)","v":0},{"$f":"SUMIF(G:J,Tabla3[[#This Row],[NIT]],J:J)","v":0}]
[899999162,"AGENCIA LOGÍSTICA DE LAS FUERZAS MILITARES",{"$f":"SUMIF(G:J,Tabla3[[#This Row],[NIT]],I:I)","v":428939357.63999999},{"$f":"SUMIF(G:J,Tabla3[[#This Row],[NIT]],J:J)","v":161198424.62}]
[899999230,"UNIVERSIDADES PÚBLICAS - UNIVERSIDAD DISTRITAL FRANCISCO JOSE DE CALDAS",{"$f":"SUMIF(G:J,Tabla3[[#This Row],[NIT]],I:I)","v":0},{"$f":"SUMIF(G:J,Tabla3[[#This Row],[NIT]],J:J)","v":0}]
[899999238,"CORPORACIÓN AUTÓNOMA REGIONAL PARA EL DESARROLLO SOSTENIBLE DEL CHOCO (CODECHOCO)",{"$f":"SUMIF(G:J,Tabla3[[#This Row],[NIT]],I:I)","v":0},{"$f":"SUMIF(G:J,Tabla3[[#This Row],[NIT]],J:J)","v":0}]
[899999239,"INSTITUTO COLOMBIANO DE BIENESTAR FAMILIAR (ICBF)",{"$f":"SUMIF(G:J,Tabla3[[#This Row],[NIT]],I:I)","v":0},{"$f":"SUMIF(G:J,Tabla3[[#This Row],[NIT]],J:J)","v":0}]
[899999294,"SERVICIO GEOLÓGICO COLOMBIANO",{"$f":"SUMIF(G:J,Tabla3[[#This Row],[NIT]],I:I)","v":0},{"$f":"SUMIF(G:J,Tabla3[[#This Row],[NIT]],J:J)","v":264582107.08000001}]
[899999296,"MINISTERIO DE CIENCIA, TECNOLOGÍA E INNOVACIÓN - GESTIÓN GENERAL",{"$f":"SUMIF(G:J,Tabla3[[#This Row],[NIT]],I:I)","v":0},{"$f":"SUMIF(G:J,Tabla3[[#This Row],[NIT]],J:J)","v":176531515.00999999}]
[899999306,"MINISTERIO DEL DEPORTE - GESTIÓN GENERAL ",{"$f":"SUMIF(G:J,Tabla3[[#This Row],[NIT]],I:I)","v":34064856},{"$f":"SUMIF(G:J,Tabla3[[#This Row],[NIT]],J:J)","v":505280980.10000002}]
[899999327,"UNIDAD ADMINISTRATIVA ESPECIAL FONDO NACIONAL DE ESTUPEFACIENTES",{"$f":"SUMIF(G:J,Tabla3[[#This Row],[NIT]],I:I)","v":0},{"$f":"SUMIF(G:J,Tabla3[[#This Row],[NIT]],J:J)","v":0}]
[899999403,"INSTITUTO NACIONAL DE SALUD (INS)",{"$f":"SUMIF(G:J,Tabla3[[#This Row],[NIT]],I:I)","v":0},{"$f":"SUMIF(G:J,Tabla3[[#This Row],[NIT]],J:J)","v":123074025.91}]
[899999717,"DEFENSA CIVIL COLOMBIANA, GUILLERMO LEÓN VALENCIA",{"$f":"SUMIF(G:J,Tabla3[[#This Row],[NIT]],I:I)","v":0},{"$f":"SUMIF(G:J,Tabla3[[#This Row],[NIT]],J:J)","v":429435490.95999998}]
[899999734,"FONDO DE PREVISIÓN SOCIAL DEL CONGRESO - CESANTÍAS Y VIVIENDA",{"$f":"SUMIF(G:J,Tabla3[[#This Row],[NIT]],I:I)","v":935657852},{"$f":"SUMIF(G:J,Tabla3[[#This Row],[NIT]],J:J)","v":1176842765.9100001}]
[899999737,"FONDO ROTATORIO DE LA REGISTRADURÍA",{"$f":"SUMIF(G:J,Tabla3[[#This Row],[NIT]],I:I)","v":0},{"$f":"SUMIF(G:J,Tabla3[[#This Row],[NIT]],J:J)","v":0}]
[900003409,"COMISIÓN NACIONAL DEL SERVICIO CIVIL",{"$f":"SUMIF(G:J,Tabla3[[#This Row],[NIT]],I:I)","v":75829826.540000007},{"$f":"SUMIF(G:J,Tabla3[[#This Row],[NIT]],J:J)","v":414243181.29000002}]
[900034993,"COMISIÓN DE REGULACIÓN DE ENERGÍA Y GAS (CREG)",{"$f":"SUMIF(G:J,Tabla3[[#This Row],[NIT]],I:I)","v":2873341054},{"$f":"SUMIF(G:J,Tabla3[[#This Row],[NIT]],J:J)","v":6377111233.7299995}]
[900039527,"ARMADA",{"$f":"SUMIF(G:J,Tabla3[[#This Row],[NIT]],I:I)","v":0},{"$f":"SUMIF(G:J,Tabla3[[#This Row],[NIT]],J:J)","v":0}]
[900039533,"DEPARTAMENTO ADMINISTRATIVO PARA LA PROSPERIDAD SOCIAL - GESTIÓN GENERAL",{"$f":"SUMIF(G:J,Tabla3[[#This Row],[NIT]],I:I)","v":0},{"$f":"SUMIF(G:J,Tabla3[[#This Row],[NIT]],J:J)","v":5180238029.4300003}]
[900180739,"UNIDAD ADMINISTRATIVA ESPECIAL JUNTA CENTRAL CONTADORES",{"$f":"SUMIF(G:J,Tabla3[[#This Row],[NIT]],I:I)","v":82293935},{"$f":"SUMIF(G:J,Tabla3[[#This Row],[NIT]],J:J)","v":370642185.02999997}]
[900334265,"AGENCIA NACIONAL DEL ESPECTRO - ANE",{"$f":"SUMIF(G:J,Tabla3[[#This Row],[NIT]],I:I)","v":0},{"$f":"SUMIF(G:J,Tabla3[[#This Row],[NIT]],J:J)","v":82151805.359999999}]
[900373379,"POLICÍA NACIONAL - EDUCACIÓN",{"$f":"SUMIF(G:J,Tabla3[[#This Row],[NIT]],I:I)","v":0},{"$f":"SUMIF(G:J,Tabla3[[#This Row],[NIT]],J:J)","v":0}]
[900373913,"UNIDAD ADMINISTRATIVA ESPECIAL DE GESTIÓN PENSIONAL Y CONTRIBUCIONES PARAFISCALES DE LA PROTECCIÓN SOCIAL (UGPPP) - GESTIÓN GENERAL",{"$f":"SUMIF(G:J,Tabla3[[#This Row],[NIT]],I:I)","v":0},{"$f":"SUMIF(G:J,Tabla3[[#This Row],[NIT]],J:J)","v":244899817.63999999}]
[900384997,"UNIDAD ADMINISTRATIVA ESPECIAL DE LA JUSTICIA PENAL MILITAR Y POLICIAL",{"$f":"SUMIF(G:J,Tabla3[[#This Row],[NIT]],I:I)","v":0},{"$f":"SUMIF(G:J,Tabla3[[#This Row],[NIT]],J:J)","v":111002384.18000001}]
[900450205,"FONDO ADAPTACIÓN",{"$f":"SUMIF(G:J,Tabla3[[#This Row],[NIT]],I:I)","v":0},{"$f":"SUMIF(G:J,Tabla3[[#This Row],[NIT]],J:J)","v":1994059348.3199999}]
[900457461,"MINISTERIO DE JUSTICIA Y DEL DERECHO - GESTIÓN GENERAL",{"$f":"SUMIF(G:J,Tabla3[[#This Row],[NIT]],I:I)","v":445513490},{"$f":"SUMIF(G:J,Tabla3[[#This Row],[NIT]],J:J)","v":837533465.64999998}]
[900463725,"MINISTERIO DE VIVIENDA, CIUDAD Y TERRITORIO - GESTIÓN GENERAL",{"$f":"SUMIF(G:J,Tabla3[[#This Row],[NIT]],I:I)","v":0},{"$f":"SUMIF(G:J,Tabla3[[#This Row],[NIT]],J:J)","v":579552384.86000001}]
[900467239,"AUTORIDAD NACIONAL DE LICENCIAS AMBIENTALES ANLA",{"$f":"SUMIF(G:J,Tabla3[[#This Row],[NIT]],I:I)","v":0},{"$f":"SUMIF(G:J,Tabla3[[#This Row],[NIT]],J:J)","v":1644154306.55}]
[900474727,"MINISTERIO DE SALUD Y PROTECCIÓN SOCIAL - GESTIÓN GENERAL",{"$f":"SUMIF(G:J,Tabla3[[#This Row],[NIT]],I:I)","v":0},{"$f":"SUMIF(G:J,Tabla3[[#This Row],[NIT]],J:J)","v":25578820109.119999}]
[900475460,"DEPARTAMENTO ADMINISTRATIVO DIRECCIÓN NACIONAL DE INTELIGENCIA - GESTIÓN GENERAL",{"$f":"SUMIF(G:J,Tabla3[[#This Row],[NIT]],I:I)","v":0},{"$f":"SUMIF(G:J,Tabla3[[#This Row],[NIT]],J:J)","v":44778910.560000002}]
[900475780,"UNIDAD NACIONAL DE PROTECCIÓN - UNP",{"$f":"SUMIF(G:J,Tabla3[[#This Row],[NIT]],I:I)","v":560640653},{"$f":"SUMIF(G:J,Tabla3[[#This Row],[NIT]],J:J)","v":2822164547.6300001}]
[900477169,"AGENCIA PARA LA REINCORPORACIÓN Y LA NORMALIZACIÓN - ARN",{"$f":"SUMIF(G:J,Tabla3[[#This Row],[NIT]],I:I)","v":163599527},{"$f":"SUMIF(G:J,Tabla3[[#This Row],[NIT]],J:J)","v":57848142.990000002}]
[900477235,"UNIDAD ADMINISTRATIVA ESPECIAL MIGRACIÓN COLOMBIA",{"$f":"SUMIF(G:J,Tabla3[[#This Row],[NIT]],I:I)","v":0},{"$f":"SUMIF(G:J,Tabla3[[#This Row],[NIT]],J:J)","v":728532451.08000004}]
[900478966,"UNIDAD NACIONAL PARA LA GESTIÓN DEL RIESGO DE DESASTRES",{"$f":"SUMIF(G:J,Tabla3[[#This Row],[NIT]],I:I)","v":213087325.59999999},{"$f":"SUMIF(G:J,Tabla3[[#This Row],[NIT]],J:J)","v":7491416397.5900002}]
[900479658,"UNIDAD DE PLANIFICACIÓN DE TIERRAS RURALES, ADECUACIÓN DE TIERRAS Y USOS AGROPECUARIOS (UPRA)",{"$f":"SUMIF(G:J,Tabla3[[#This Row],[NIT]],I:I)","v":0},{"$f":"SUMIF(G:J,Tabla3[[#This Row],[NIT]],J:J)","v":0}]
[900479669,"AUTORIDAD NACIONAL DE ACUICULTURA Y PESCA - AUNAP",{"$f":"SUMIF(G:J,Tabla3[[#This Row],[NIT]],I:I)","v":0},{"$f":"SUMIF(G:J,Tabla3[[#This Row],[NIT]],J:J)","v":22615332.289999999}]
[900483991,"AGENCIA NACIONAL INMOBILIARIA VIRGILIO BARCO VARGAS",{"$f":"SUMIF(G:J,Tabla3[[#This Row],[NIT]],I:I)","v":0},{"$f":"SUMIF(G:J,Tabla3[[#This Row],[NIT]],J:J)","v":36873651.93}]
[900484852,"AGENCIA PRESIDENCIAL DE COOPERACIÓN INTERNACIONAL DE COLOMBIA, APC - COLOMBIA",{"$f":"SUMIF(G:J,Tabla3[[#This Row],[NIT]],I:I)","v":0},{"$f":"SUMIF(G:J,Tabla3[[#This Row],[NIT]],J:J)","v":35445405.93}]
[900490473,"UNIDAD DE ATENCIÓN Y REPARACIÓN INTEGRAL A LAS VÍCTIMAS",{"$f":"SUMIF(G:J,Tabla3[[#This Row],[NIT]],I:I)","v":0},{"$f":"SUMIF(G:J,Tabla3[[#This Row],[NIT]],J:J)","v":566871082.67999995}]
[900492141,"CENTRO DE MEMORIA HISTÓRICA",{"$f":"SUMIF(G:J,Tabla3[[#This Row],[NIT]],I:I)","v":0},{"$f":"SUMIF(G:J,Tabla3[[#This Row],[NIT]],J:J)","v":11923535.710000001}]
[900494393,"INSTITUTO NACIONAL DE METROLOGÍA - INM",{"$f":"SUMIF(G:J,Tabla3[[#This Row],[NIT]],I:I)","v":0},{"$f":"SUMIF(G:J,Tabla3[[#This Row],[NIT]],J:J)","v":6720633.8099999996}]
[900498879,"UNIDAD ADMINISTRATIVA ESPECIAL DE GESTIÓN DE RESTITUCIÓN DE TIERRAS DESPOJADAS",{"$f":"SUMIF(G:J,Tabla3[[#This Row],[NIT]],I:I)","v":741560023},{"$f":"SUMIF(G:J,Tabla3[[#This Row],[NIT]],J:J)","v":3012778603.1199999}]
[900500018,"AGENCIA NACIONAL DE MINERÍA - ANM",{"$f":"SUMIF(G:J,Tabla3[[#This Row],[NIT]],I:I)","v":0},{"$f":"SUMIF(G:J,Tabla3[[#This Row],[NIT]],J:J)","v":0}]
[900507741,"UNIDAD ADMINISTRATIVA ESPECIAL AGENCIA NACIONAL DE DEFENSA JURÍDICA DEL ESTADO",{"$f":"SUMIF(G:J,Tabla3[[#This Row],[NIT]],I:I)","v":0},{"$f":"SUMIF(G:J,Tabla3[[#This Row],[NIT]],J:J)","v":74526838.5}]
[900514813,"UNIDAD ADMINISTRATIVA ESPECIAL - AGENCIA NACIONAL DE CONTRATACIÓN PÚBLICA - COLOMBIA COMPRA EFICIENTE.",{"$f":"SUMIF(G:J,Tabla3[[#This Row],[NIT]],I:I)","v":0},{"$f":"SUMIF(G:J,Tabla3[[#This Row],[NIT]],J:J)","v":739250874.74000001}]
[900523392,"UNIDAD DE SERVICIOS PENITENCIARIOS Y CARCELARIOS - USPEC",{"$f":"SUMIF(G:J,Tabla3[[#This Row],[NIT]],I:I)","v":94559943.359999999},{"$f":"SUMIF(G:J,Tabla3[[#This Row],[NIT]],J:J)","v":904076283.37}]
[900528648,"UNIDAD ADMINISTRATIVA ESPECIAL AGENCIA DEL INSPECTOR GENERAL DE TRIBUTOS, RENTAS Y CONTRIBUCIONES PARAFISCALES (ITRC)",{"$f":"SUMIF(G:J,Tabla3[[#This Row],[NIT]],I:I)","v":0},{"$f":"SUMIF(G:J,Tabla3[[#This Row],[NIT]],J:J)","v":90139707.379999995}]
[900639630,"DIRECCIÓN NACIONAL DE BOMBEROS",{"$f":"SUMIF(G:J,Tabla3[[#This Row],[NIT]],I:I)","v":0},{"$f":"SUMIF(G:J,Tabla3[[#This Row],[NIT]],J:J)","v":0}]
[900657800,"UNIDAD ADMINISTRATIVA ESPECIAL UNIDAD DE PROYECCIÓN NORMATIVA Y ESTUDIOS DE REGULACIÓN FINANCIERA (URF)",{"$f":"SUMIF(G:J,Tabla3[[#This Row],[NIT]],I:I)","v":0},{"$f":"SUMIF(G:J,Tabla3[[#This Row],[NIT]],J:J)","v":0}]
[900678508,"UNIDAD ADMINISTRATIVA ESPECIAL DEL SERVICIO PÚBLICO DE EMPLEO",{"$f":"SUMIF(G:J,Tabla3[[#This Row],[NIT]],I:I)","v":0},{"$f":"SUMIF(G:J,Tabla3[[#This Row],[NIT]],J:J)","v":3255633.26}]
[900852998,"AGENCIA NACIONAL DE SEGURIDAD VIAL",{"$f":"SUMIF(G:J,Tabla3[[#This Row],[NIT]],I:I)","v":0},{"$f":"SUMIF(G:J,Tabla3[[#This Row],[NIT]],J:J)","v":108916790.04000001}]
[900894833,"DIRECCIÓN DE VETERANOS Y REHABILITACIÓN INCLUSIVA",{"$f":"SUMIF(G:J,Tabla3[[#This Row],[NIT]],I:I)","v":0},{"$f":"SUMIF(G:J,Tabla3[[#This Row],[NIT]],J:J)","v":0}]
[900948953,"AGENCIA NACIONAL DE TIERRAS - ANT",{"$f":"SUMIF(G:J,Tabla3[[#This Row],[NIT]],I:I)","v":0},{"$f":"SUMIF(G:J,Tabla3[[#This Row],[NIT]],J:J)","v":10977849443.870001}]
[900948958,"AGENCIA DE DESARROLLO RURAL - ADR",{"$f":"SUMIF(G:J,Tabla3[[#This Row],[NIT]],I:I)","v":0},{"$f":"SUMIF(G:J,Tabla3[[#This Row],[NIT]],J:J)","v":802937284.94000006}]
[901006886,"AGENCIA DE RENOVACIÓN DEL TERRITORIO – ART - GESTIÓN GENERAL ",{"$f":"SUMIF(G:J,Tabla3[[#This Row],[NIT]],I:I)","v":0},{"$f":"SUMIF(G:J,Tabla3[[#This Row],[NIT]],J:J)","v":139883815.66999999}]
[901140004,"JURISDICCIÓN ESPECIAL PARA LA PAZ - GESTIÓN GENERAL ",{"$f":"SUMIF(G:J,Tabla3[[#This Row],[NIT]],I:I)","v":0},{"$f":"SUMIF(G:J,Tabla3[[#This Row],[NIT]],J:J)","v":520921053.19}]
[901144049,"CORPORACIÓN AGENCIA NACIONAL DE GOBIERNO DIGITAL - AND",{"$f":"SUMIF(G:J,Tabla3[[#This Row],[NIT]],I:I)","v":0},{"$f":"SUMIF(G:J,Tabla3[[#This Row],[NIT]],J:J)","v":0}]
[901148337,"FONDO ESPECIAL PARA LA ADMINISTRACIÓN DE BIENES DE LA FISCALÍA GENERAL DE LA NACIÓN",{"$f":"SUMIF(G:J,Tabla3[[#This Row],[NIT]],I:I)","v":0},{"$f":"SUMIF(G:J,Tabla3[[#This Row],[NIT]],J:J)","v":0}]
[901158482,"UNIDAD DE BÚSQUEDA DE PERSONAS DADAS POR DESAPARECIDAS EN EL CONTEXTO Y EN RAZÓN DEL CONFLICTO ARMADO (UBPD)",{"$f":"SUMIF(G:J,Tabla3[[#This Row],[NIT]],I:I)","v":0},{"$f":"SUMIF(G:J,Tabla3[[#This Row],[NIT]],J:J)","v":0}]
[901179431,"COMISIÓN PARA EL ESCLARECIMIENTO DE LA VERDAD, LA  CONVIVENCIA Y LA NO REPETICIÓN EN LIQUIDACIÓN",{"$f":"SUMIF(G:J,Tabla3[[#This Row],[NIT]],I:I)","v":0},{"$f":"SUMIF(G:J,Tabla3[[#This Row],[NIT]],J:J)","v":0}]
[901352963,"DIRECCIÓN DE SUSTITUCIÓN DE CULTIVOS USO ILÍCITO",{"$f":"SUMIF(G:J,Tabla3[[#This Row],[NIT]],I:I)","v":0},{"$f":"SUMIF(G:J,Tabla3[[#This Row],[NIT]],J:J)","v":0}]
[901377527,"UNIDAD ADMINISTRATIVA ESPECIAL ALIMENTACIÓN ESCOLAR",{"$f":"SUMIF(G:J,Tabla3[[#This Row],[NIT]],I:I)","v":0},{"$f":"SUMIF(G:J,Tabla3[[#This Row],[NIT]],J:J)","v":0}]
[901525615,"UNIDAD DE PLANEACIÓN DEL SECTOR DE INFRAESTRUCTURA DE TRANSPORTE",{"$f":"SUMIF(G:J,Tabla3[[#This Row],[NIT]],I:I)","v":0},{"$f":"SUMIF(G:J,Tabla3[[#This Row],[NIT]],J:J)","v":0}]
[901717412,"CONSEJO NACIONAL ELECTORAL",{"$f":"SUMIF(G:J,Tabla3[[#This Row],[NIT]],I:I)","v":0},{"$f":"SUMIF(G:J,Tabla3[[#This Row],[NIT]],J:J)","v":1675744576.47}]
[901733502,"MINISTERIO DE IGUALDAD Y EQUIDAD",{"$f":"SUMIF(G:J,Tabla3[[#This Row],[NIT]],I:I)","v":0},{"$f":"SUMIF(G:J,Tabla3[[#This Row],[NIT]],J:J)","v":0}]
[8300157281,"MINISTERIO PUBLICO - INSTITUTO DE ESTUDIOS DEL MINISTERIO PUBLICO",{"$f":"SUMIF(G:J,Tabla3[[#This Row],[NIT]],I:I)","v":0},{"$f":"SUMIF(G:J,Tabla3[[#This Row],[NIT]],J:J)","v":0}]
[]
[null,null,null,null,null,null,8300157281,"MINISTERIO PUBLICO - INSTITUTO DE ESTUDIOS DEL MINISTERIO PUBLICO",0,0]
[null,null,null,null,null,null,"900373379","POLICÍA NACIONAL - EDUCACIÓN",0,0]